Workbook

Sheet Transition Matrices
A1: Model Inputs | H1: Transition Matrix: Treatment A | BB1: txA_cost | BC1: txA_QALY | BD1: txB_cost | BE1: txB_QALY | BF1: txB_cumu_NMB | DT1: txA_cost | DU1: txA_QALY | DV1: txB_cost | DW1: txB_QALY | DY1: txA_ExpNB | DZ1: txB_ExpNB | EA1: selected | EB1: EVPI | EG1: CEAC/CEF | EH1: txA_% | EI1: txB_% | EJ1: txA_NB | EK1: txB_NB
AA2: Transition Matrix: Treatment B | BB2: =$R$92 -> 15953.91883 | BC2: =$V$92 -> 0.5050228065 | BD2: =$AK$92 -> 31197.82121 | BE2: =$AO$92 -> 0.8439548079 | DT2: =AVERAGE(DT9:DT10008) -> 16789.01985 | DU2: =AVERAGE(DU9:DU10008) -> 0.5083214092 | DV2: =AVERAGE(DV9:DV10008) -> 30607.12439 | DW2: =AVERAGE(DW9:DW10008) -> 0.8416174291 | DY2: =lambda*DU2-DT2 -> -1539.377573 | DZ2: =lambda*DW2-DV2 -> -5358.601516 | EA2: =IF(DY2>DZ2, "tx A", IF(DZ2>DY2, "tx B", "either")) -> tx A | EB2: =AVERAGE(EB9:EB10008) -> 647.1368153 | EH2: =DY3 -> 0.8001 | EI2: =DZ3 -> 0.1999 | EJ2: =DY2 -> -1539.377573 | EK2: =DZ2 -> -5358.601516
J3: SILENT | K3: ACTIVE | L3: COMPL | M3: DEAD | AC3: SILENT | AD3: ACTIVE | AE3: COMPL | AF3: DEAD | DY3: =COUNTIF($EA9:$EA10008,"tx A")/10000 -> 0.8001 | DZ3: =COUNTIF($EA9:$EA10008,"tx B")/10000 -> 0.1999
I4: SILENT | J4: =1-K4-L4-M4 -> 0.8924444444 | K4: =p_active_A -> 0.09422222222 | L4: =p_compl_sil_A -> 0.01155555556 | M4: =p_dead_sil_A -> 0.001777777778 | AB4: SILENT | AC4: =1-AD4-AE4-AF4 -> 0.8914386584 | AD4: =p_active_B -> 0.09267431598 | AE4: =p_compl_sil_B -> 0.01412180053 | AF4: =p_dead_sil_B -> 0.001765225066 | EG4: lambda (display only)
I5: ACTIVE | J5: =p_success_A -> 0.1944764097 | K5: =1-J5-L5-M5 -> 0.6605293441 | L5: =p_compl_act_A -> 0.1438434983 | M5: =p_dead_act_A -> 0.001150747986 | AB5: ACTIVE | AC5: =p_success_B -> 0.2119047619 | AD5: =1-AC5-AE5-AF5 -> 0.6892857143 | AE5: =p_compl_act_B -> 0.09761904762 | AF5: =p_dead_act_B -> 0.00119047619 | DY5: incr_cost | DZ5: incr_QALY | EA5: ICER | EG5: 50000
I6: COMPL | J6: 0 | K6: 0 | L6: =1-M6 -> 0.9965059399 | M6: =p_dead_cmp_A -> 0.003494060098 | AB6: COMPL | AC6: 0 | AD6: 0 | AE6: =1-AF6 -> 0.9965059399 | AF6: =p_dead_cmp_B -> 0.003494060098 | AS6: Incremental analysis | BF6: txB_cumu_NMB | DY6: =DV2-DT2 -> 13818.10454 | DZ6: =DW2-DU2 -> 0.3332960199 | EA6: =DY6/DZ6 -> 41458.95455
I7: DEAD | J7: 0 | K7: 0 | L7: 0 | M7: 1 | AB7: DEAD | AC7: 0 | AD7: 0 | AE7: 0 | AF7: 1 | BF7: Period
BB8: txA_cost | BC8: txA_QALY | BD8: txB_cost | BE8: txB_QALY | BF8: 1 | BG8: 2 | BH8: 3 | BI8: 4 | BJ8: 5 | BK8: 6 | BL8: 7 | BM8: 8 | BN8: 9 | BO8: 10 | BP8: 11 | BQ8: 12 | BR8: 13 | BS8: 14 | BT8: 15 | BU8: 16 | BV8: 17 | BW8: 18 | BX8: 19 | BY8: 20 | BZ8: 21 | CA8: 22 | CB8: 23 | CC8: 24 | CD8: 25 | CE8: 26 | CF8: 27 | CG8: 28 | CH8: 29 | CI8: 30 | CJ8: 31 | CK8: 32 | CL8: 33 | CM8: 34 | CN8: 35 | CO8: 36 | CP8: 37 | CQ8: 38 | CR8: 39 | CS8: 40 | CT8: 41 | CU8: 42 | CV8: 43 | CW8: 44 | CX8: 45 | CY8: 46 | CZ8: 47 | DA8: 48 | DB8: 49 | DC8: 50 | DD8: 51 | DE8: 52 | DF8: 53 | DG8: 54 | DH8: 55 | DI8: 56 | DJ8: 57 | DK8: 58 | DL8: 59 | DM8: 60 | DN8: 61 | DT8: txA_cost | DU8: txA_QALY | DV8: txB_cost | DW8: txB_QALY | DY8: txA_NB | DZ8: txB_NB | EA8: Optimal | EB8: NB lost | EG8: lambda or WTP | EH8: txA_% | EI8: txB_% | EJ8: txA_NB | EK8: txB_NB | EL8: CEF
AV9: COSTS | AW9: OUTCOMES | AX9: NET BENEFIT | BA9: 1 | BB9: 16877.86298 | BC9: 0.4045228628 | BD9: 30665.47175 | BE9: 0.5957077255 | DS9: 1 | DT9: 16877.86298 | DU9: 0.4045228628 | DV9: 30665.47175 | DW9: 0.5957077255 | DX9: 1 | DY9: =lambda*DU9-DT9 -> -4742.177102 | DZ9: =lambda*DW9-DV9 -> -12794.23998 | EA9: =IF(DY9>DZ9, "tx A", IF(DZ9>DY9, "tx B", "either")) -> tx A | EB9: =IF(EA$2="tx A", MAX(0,DZ9-DY9), MAX(0, DY9-DZ9)) -> 0 | EG9: 0 | EH9: 1 | EI9: 0 | EJ9: -16767.43388 | EK9: -30622.09179 | EL9: =IF(EJ9>EK9,EH9,EI9) -> 1
AT10: Treatment A | AV10: =$R$92 -> 15953.91883 | AW10: =$V$92 -> 0.5050228065 | AX10: =AW10*lambda-AV10 -> -803.2346382 | BA10: =1+BA9 -> 2 | BB10: 17893.26424 | BC10: 0.4043660512 | BD10: 30424.4489 | BE10: 0.6404004883 | DS10: =1+DS9 -> 2 | DT10: 17893.26424 | DU10: 0.4043660512 | DV10: 30424.4489 | DW10: 0.6404004883 | DX10: 2 | DY10: =lambda*DU10-DT10 -> -5762.282703 | DZ10: -11212.43426 | EA10: tx A | EB10: 0 | EG10: =EG9+400 -> 400 | EH10: 1 | EI10: 0 | EJ10: -16566.45638 | EK10: -30286.89848 | EL10: =IF(EJ10>EK10,EH10,EI10) -> 1
AT11: Treatment B | AV11: =$AK$92 -> 31197.82121 | AW11: =$AO$92 -> 0.8439548079 | AX11: =AW11*lambda-AV11 -> -5879.176975 | BA11: =1+BA10 -> 3 | BB11: 16930.90828 | BC11: 0.5318229304 | BD11: 28499.46486 | BE11: 0.6992213352 | DS11: =1+DS10 -> 3 | DT11: 16930.90828 | DU11: 0.5318229304 | DV11: 28499.46486 | DW11: 0.6992213352 | DX11: 3 | DY11: -976.2203694 | DZ11: -7522.824802 | EA11: tx A | EB11: 0 | EG11: =EG10+400 -> 800 | EH11: 1 | EI11: 0 | EJ11: -16365.47887 | EK11: -29951.70516 | EL11: 1
BA12: 4 | BB12: 15646.28304 | BC12: 1.307498839 | BD12: 29997.66172 | BE12: 1.523703859 | DS12: 4 | DT12: 15646.28304 | DU12: 1.307498839 | DV12: 29997.66172 | DW12: 1.523703859 | DX12: 4 | DY12: 23578.68212 | DZ12: 15713.45405 | EA12: tx A | EB12: 0 | EG12: 1200 | EH12: 1 | EI12: 0 | EJ12: -16164.50137 | EK12: -29616.51184 | EL12: 1
BA13: 5 | BB13: 17258.0128 | BC13: -0.6094558951 | BD13: 31526.52022 | BE13: 0.1203329512 | DS13: 5 | DT13: 17258.0128 | DU13: -0.6094558951 | DV13: 31526.52022 | DW13: 0.1203329512 | DX13: 5 | DY13: -35541.68965 | DZ13: -27916.53169 | EA13: tx B | EB13: 7625.157964 | EG13: 1600 | EH13: 1 | EI13: 0 | EJ13: -15963.52386 | EK13: -29281.31853 | EL13: 1
AT14: Incremental | AV14: =AV11-AV10 -> 15243.90238 | BA14: 6 | BB14: 16385.0356 | BC14: 0.8832984587 | BD14: 29310.66602 | BE14: 1.053639434 | DS14: 6 | DT14: 16385.0356 | DU14: 0.8832984587 | DV14: 29310.66602 | DW14: 1.053639434 | DX14: 6 | DY14: 10113.91816 | DZ14: 2298.517001 | EA14: tx A | EB14: 0 | EG14: 2000 | EH14: 1 | EI14: 0 | EJ14: -15762.54636 | EK14: -28946.12521 | EL14: 1
AV15: for | AW15: =AW11-AW10 -> 0.3389320014 | AX15: QALYs | BA15: 7 | BB15: 19565.40846 | BC15: 0.1265728409 | BD15: 30949.67918 | BE15: 0.6190474122 | DS15: 7 | DT15: 19565.40846 | DU15: 0.1265728409 | DV15: 30949.67918 | DW15: 0.6190474122 | DX15: 7 | DY15: -15768.22323 | DZ15: -12378.25681 | EA15: tx B | EB15: 3389.966422 | EG15: 2400 | EH15: 1 | EI15: 0 | EJ15: -15561.56885 | EK15: -28610.93189 | EL15: 1
BA16: 8 | BB16: 17455.17719 | BC16: -0.5181403492 | BD16: 29576.86348 | BE16: -0.1596635801 | DS16: 8 | DT16: 17455.17719 | DU16: -0.5181403492 | DV16: 29576.86348 | DW16: -0.1596635801 | DX16: 8 | DY16: -32999.38766 | DZ16: -34366.77088 | EA16: tx A | EB16: 0 | EG16: 2800 | EH16: 1 | EI16: 0 | EJ16: -15360.59135 | EK16: -28275.73858 | EL16: 1
AT17: ICER | AV17: =AV14/AW15 -> 44976.28526 | AW17: per QALY | BA17: 9 | BB17: 18414.11587 | BC17: 0.8314242337 | BD17: 32317.85443 | BE17: 1.362874741 | DS17: 9 | DT17: 18414.11587 | DU17: 0.8314242337 | DV17: 32317.85443 | DW17: 1.362874741 | DX17: 9 | DY17: 6528.611138 | DZ17: 8568.387785 | EA17: tx B | EB17: 2039.776647 | EG17: 3200 | EH17: 1 | EI17: 0 | EJ17: -15159.61384 | EK17: -27940.54526 | EL17: 1
BA18: 10 | BB18: 17631.72069 | BC18: 1.174478715 | BD18: 32176.09898 | BE18: 1.536510443 | DS18: 10 | DT18: 17631.72069 | DU18: 1.174478715 | DV18: 32176.09898 | DW18: 1.536510443 | DX18: 10 | DY18: 17602.64076 | DZ18: 13919.21431 | EA18: tx A | EB18: 0 | EG18: 3600 | EH18: 1 | EI18: 0 | EJ18: -14958.63633 | EK18: -27605.35195 | EL18: 1
H19: TREATMENT A | AA19: TREATMENT B | BA19: 11 | BB19: 18147.0578 | BC19: 0.01659514708 | BD19: 30069.96296 | BE19: 0.4426714271 | DS19: 11 | DT19: 18147.0578 | DU19: 0.01659514708 | DV19: 30069.96296 | DW19: 0.4426714271 | DX19: 11 | DY19: -17649.20339 | DZ19: -16789.82015 | EA19: tx B | EB19: 859.3832365 | EG19: 4000 | EH19: 1 | EI19: 0 | EJ19: -14757.65883 | EK19: -27270.15863 | EL19: 1
J20: PROBABILITIES | O20: COSTS | S20: OUTCOMES | AC20: PROBABILITIES | AH20: COSTS | AL20: OUTCOMES | BA20: 12 | BB20: 16273.53401 | BC20: 0.3856247918 | BD20: 31124.94602 | BE20: 0.8548006861 | DS20: 12 | DT20: 16273.53401 | DU20: 0.3856247918 | DV20: 31124.94602 | DW20: 0.8548006861 | DX20: 12 | DY20: -4704.790259 | DZ20: -5480.925433 | EA20: tx A | EB20: 0 | EG20: 4400 | EH20: 1 | EI20: 0 | EJ20: -14556.68132 | EK20: -26934.96531 | EL20: 1
A21: PROBABILITIES | B21: Treatment A | C21: Treatment B | H21: YEARS | I21: PERIOD | J21: SILENT | K21: ACTIVE | L21: COMPL | M21: DEAD | N21: discount | O21: SILENT | P21: ACTIVE | Q21: COMPL | R21: DEAD | S21: SILENT | T21: ACTIVE | U21: COMPL | V21: DEAD | AA21: YEARS | AB21: PERIOD | AC21: SILENT | AD21: ACTIVE | AE21: COMPL | AF21: DEAD | AG21: discount | AH21: SILENT | AI21: ACTIVE | AJ21: COMPL | AK21: DEAD | AL21: SILENT | AM21: ACTIVE | AN21: COMPL | AO21: DEAD | BA21: 13 | BB21: 18438.76512 | BC21: 0.2501364799 | BD21: 29713.29706 | BE21: 0.3493939725 | DS21: 13 | DT21: 18438.76512 | DU21: 0.2501364799 | DV21: 29713.29706 | DW21: 0.3493939725 | DX21: 13 | DY21: -10934.67073 | DZ21: -19231.47788 | EA21: tx A | EB21: 0 | EG21: 4800 | EH21: 1 | EI21: 0 | EJ21: -14355.70382 | EK21: -26599.772 | EL21: 1
A22: p_active | B22: =Parameters!D8 -> 0.09422222222 | C22: =Parameters!D9 -> 0.09267431598 | H22: =TEXT((I22-MOD(I22-1,12))/12,"0")&"."&TEXT(MOD(I22-1,12), "00") -> 0.00 | I22: 1 | J22: 0 | K22: 1 | L22: 0 | M22: 0 | N22: 1 | O22: =c_sil_A*J22*N22 -> 0 | P22: =c_act_A*K22*N22 -> 122.4295517 | Q22: =c_compl_A*L22*N22 -> 0 | R22: =c_dead_A*M22*N22 -> 0 | S22: =u_sil*J22*N22 -> 0 | T22: =u_act*K22*N22 -> 0.05441666667 | U22: =u_compl*L22*N22 -> 0 | V22: =u_dead*M22*N22 -> 0 | AA22: =TEXT((AB22-MOD(AB22-1,12))/12,"0")&"."&TEXT(MOD(AB22-1,12), "00") -> 0.00 | AB22: 1 | AC22: 0 | AD22: 1 | AE22: 0 | AF22: 0 | AG22: 1 | AH22: =c_sil_B*AC22*AG22 -> 0 | AI22: =c_act_B*AD22*AG22 -> 987.4295517 | AJ22: =c_compl_B*AE22*AG22 -> 0 | AK22: =c_dead_B*AF22*AG22 -> 0 | AL22: =u_sil*AC22*AG22 -> 0 | AM22: =u_act*AD22*AG22 -> 0.05441666667 | AN22: =u_compl*AE22*AG22 -> 0 | AO22: =u_dead*AF22*AG22 -> 0 | BA22: 14 | BB22: 16837.63553 | BC22: 0.9232539974 | BD22: 29313.81936 | BE22: 1.000855579 | DS22: 14 | DT22: 16837.63553 | DU22: 0.9232539974 | DV22: 29313.81936 | DW22: 1.000855579 | DX22: 14 | DY22: 10859.98439 | DZ22: 711.8480064 | EA22: tx A | EB22: 0 | EG22: 5200 | EH22: 1 | EI22: 0 | EJ22: -14154.72631 | EK22: -26264.57868 | EL22: 1
A23: p_success | B23: =Parameters!D10 -> 0.1944764097 | C23: =Parameters!D11 -> 0.2119047619 | H23: =TEXT((I23-MOD(I23-1,12))/12,"0")&"."&TEXT(MOD(I23-1,12), "00") -> 0.01 | I23: =1+I22 -> 2 | J23: =MMULT(J22:M22,J$4:M$7) -> 0.1944764097 | K23: 0.6605293441 | L23: 0.1438434983 | M23: 0.001150747986 | N23: =N22 -> 1 | O23: 11.96411131 | P23: 80.86831148 | Q23: 57.10538496 | R23: 0 | S23: 0.01327301496 | T23: 0.03594380514 | U23: -0.001642213272 | V23: 0 | AA23: =TEXT((AB23-MOD(AB23-1,12))/12,"0")&"."&TEXT(MOD(AB23-1,12), "00") -> 0.01 | AB23: =1+AB22 -> 2 | AC23: =MMULT(AC22:AF22,AC$4:AF$7) -> 0.2119047619 | AD23: 0.6892857143 | AE23: 0.09761904762 | AF23: 0.00119047619 | AG23: =AG22 -> 1 | AH23: 196.3339157 | AI23: 680.6210839 | AJ23: 38.75443354 | AK23: 0 | AL23: 0.0144625 | AM23: 0.03750863095 | AN23: -0.001114484127 | AO23: 0 | BA23: 15 | BB23: 16461.57369 | BC23: 0.9698067317 | BD23: 33187.02773 | BE23: 1.352277381 | DS23: 15 | DT23: 16461.57369 | DU23: 0.9698067317 | DV23: 33187.02773 | DW23: 1.352277381 | DX23: 15 | DY23: 12632.62827 | DZ23: 7381.293687 | EA23: tx A | EB23: 0 | EG23: 5600 | EH23: 1 | EI23: 0 | EJ23: -13953.74881 | EK23: -25929.38536 | EL23: 1
A24: p_compl_sil | B24: =Parameters!D12 -> 0.01155555556 | C24: =Parameters!D13 -> 0.01412180053 | H24: 0.02 | I24: =1+I23 -> 3 | J24: =MMULT(J23:M23,J$4:M$7) -> 0.3020167667 | K24: 0.4546230139 | L24: 0.240601035 | M24: 0.002759184466 | N24: =N23 -> 1 | O24: 18.57995127 | P24: 55.65929178 | Q24: 95.51780156 | R24: 0 | S24: 0.02061264433 | T24: 0.024739069 | U24: -0.002746861816 | V24: 0 | AA24: 0.02 | AB24: =1+AB23 -> 3 | AC24: =MMULT(AC23:AF23,AC$4:AF$7) -> 0.3349630218 | AD24: 0.4947529248 | AE24: 0.1675578525 | AF24: 0.002726200838 | AG24: =AG23 -> 1 | AH24: 310.3498057 | AI24: 488.5336587 | AJ24: 66.51990383 | AK24: 0 | AL24: 0.02286122624 | AM24: 0.02692280499 | AN24: -0.00191295215 | AO24: 0 | BA24: 16 | BB24: 16921.88066 | BC24: 0.6799362106 | BD24: 31452.17467 | BE24: 1.138873083 | DS24: 16 | DT24: 16921.88066 | DU24: 0.6799362106 | DV24: 31452.17467 | DW24: 1.138873083 | DX24: 16 | DY24: 3476.205664 | DZ24: 2714.017812 | EA24: tx A | EB24: 0 | EG24: 6000 | EH24: 1 | EI24: 0 | EJ24: -13752.7713 | EK24: -25594.19205 | EL24: 1
A25: p_compl_act | B25: =Parameters!D14 -> 0.1438434983 | C25: =Parameters!D15 -> 0.09761904762 | H25: 0.03 | I25: 4 | J25: =MMULT(J24:M24,J$4:M$7) -> 0.3579466371 | K25: 0.3287485321 | L25: 0.3086448967 | M25: 0.004659934156 | N25: 1 | O25: 22.02073464 | P25: 40.2485354 | Q25: 122.5309858 | R25: 0 | S25: 0.02442985798 | T25: 0.01788939929 | U25: -0.003523695904 | V25: 0 | AA25: 0.03 | AB25: 4 | AC25: =MMULT(AC24:AF24,AC$4:AF$7) -> 0.4034394875 | AD25: 0.3720685921 | AE25: 0.2199999856 | AF25: 0.004491934744 | AG25: 1 | AH25: 373.7945934 | AI25: 367.3915231 | AJ25: 87.33925427 | AK25: 0 | AL25: 0.02753474502 | AM25: 0.02024673255 | AN25: -0.002511666503 | AO25: 0 | BA25: 17 | BB25: 16176.94998 | BC25: 0.5125935834 | BD25: 31174.76587 | BE25: 0.9898852439 | DS25: 17 | DT25: 16176.94998 | DU25: 0.5125935834 | DV25: 31174.76587 | DW25: 0.9898852439 | DX25: 17 | DY25: -799.1424779 | DZ25: -1478.208549 | EA25: tx A | EB25: 0 | EG25: 6400 | EH25: 1 | EI25: 0 | EJ25: -13551.7938 | EK25: -25258.99873 | EL25: 1
A26: p_dead_sil | B26: =Parameters!D16 -> 0.001777777778 | C26: =Parameters!D17 -> 0.001765225066 | H26: 0.04 | I26: 5 | J26: =MMULT(J25:M25,J$4:M$7) -> 0.3833813218 | K26: 0.2508745798 | L26: 0.3589910841 | M26: 0.006753014262 | N26: 1 | O26: 23.58546632 | P26: 30.71446234 | Q26: 142.5182528 | R26: 0 | S26: 0.02616577522 | T26: 0.01365175839 | U26: -0.004098481543 | V26: 0 | AA26: 0.04 | AB26: 5 | AC26: =MMULT(AC25:AF25,AC$4:AF$7) -> 0.4384846619 | AD26: 0.2938500438 | AE26: 0.261249566 | AF26: 0.006415728212 | AG26: 1 | AH26: 406.2646345 | AI26: 290.156217 | AJ26: 103.7151989 | AK26: 0 | AL26: 0.02992657818 | AM26: 0.01599033988 | AN26: -0.002982599212 | AO26: 0 | BA26: 18 | BB26: 16427.52416 | BC26: 0.4205558372 | BD26: 31506.36654 | BE26: 0.6907553346 | DS26: 18 | DT26: 16427.52416 | DU26: 0.4205558372 | DV26: 31506.36654 | DW26: 0.6907553346 | DX26: 18 | DY26: -3810.84904 | DZ26: -10783.7065 | EA26: tx A | EB26: 0 | EG26: 6800 | EH26: 1 | EI26: 0 | EJ26: -13350.81629 | EK26: -24923.80541 | EL26: 1
A27: p_dead_act | B27: =Parameters!D18 -> 0.001150747986 | C27: =Parameters!D19 -> 0.00119047619 | H27: 0.05 | I27: 6 | J27: =MMULT(J26:M26,J$4:M$7) -> 0.3909357183 | K27: 0.2018330618 | L27: 0.398253609 | M27: 0.008977610896 | N27: 1 | O27: 24.05020979 | P27: 24.71033127 | Q27: 158.1053431 | R27: 0 | S27: 0.02668136278 | T27: 0.01098308244 | U27: -0.004546728703 | V27: 0 | AA27: 0.05 | AB27: 6 | AC27: =MMULT(AC26:AF26,AC$4:AF$7) -> 0.4531504024 | AD27: 0.2431829034 | AE27: 0.2952142987 | AF27: 0.008452395493 | AG27: 1 | AH27: 419.8527304 | AI27: 240.1259853 | AJ27: 117.1990836 | AK27: 0 | AL27: 0.03092751496 | AM27: 0.013233203 | AN27: -0.003370363244 | AO27: 0 | BA27: 19 | BB27: 16062.67669 | BC27: 1.09541056 | BD27: 30843.12818 | BE27: 1.383606098 | DS27: 19 | DT27: 16062.67669 | DU27: 1.09541056 | DV27: 30843.12818 | DW27: 1.383606098 | DX27: 19 | DY27: 16799.6401 | DZ27: 10665.05476 | EA27: tx A | EB27: 0 | EG27: 7200 | EH27: 1 | EI27: 0 | EJ27: -13149.83879 | EK27: -24588.6121 | EL27: 1
A28: p_dead_cmp | B28: =Parameters!D20 -> 0.003494060098 | C28: =Parameters!D20 -> 0.003494060098 | H28: 0.06 | I28: 7 | J28: =MMULT(J27:M27,J$4:M$7) -> 0.3881401792 | K28: 0.170151492 | L28: 0.43041194 | M28: 0.01129638876 | N28: 1 | O28: 23.87822933 | P28: 20.83157089 | Q28: 170.8720924 | R28: 0 | S28: 0.02649056723 | T28: 0.009259077024 | U28: -0.004913869649 | V28: 0 | AA28: 0.06 | AB28: 7 | AC28: =MMULT(AC27:AF27,AC$4:AF$7) -> 0.455487402 | AD28: 0.2096179049 | AE28: 0.3243213852 | AF28: 0.0105733079 | AG28: 1 | AH28: 422.0180064 | AI28: 206.9829138 | AJ28: 128.754499 | AK28: 0 | AL28: 0.03108701519 | AM28: 0.01140670766 | AN28: -0.003702669148 | AO28: 0 | BA28: 20 | BB28: 16451.98961 | BC28: 1.907325595 | BD28: 30248.34567 | BE28: 1.925391442 | DS28: 20 | DT28: 16451.98961 | DU28: 1.907325595 | DV28: 30248.34567 | DW28: 1.925391442 | DX28: 20 | DY28: 40767.77823 | DZ28: 27513.3976 | EA28: tx A | EB28: 0 | EG28: 7600 | EH28: 1 | EI28: 0 | EJ28: -12948.86128 | EK28: -24253.41878 | EL28: 1
H29: 0.07 | I29: 8 | J29: =MMULT(J28:M28,J$4:M$7) -> 0.3794839978 | K29: 0.1489614836 | L29: 0.4578684161 | M29: 0.01368610242 | N29: 1 | O29: 23.3457045 | P29: 18.23728766 | Q29: 181.772221 | R29: 0 | S29: 0.02589978285 | T29: 0.008105987401 | U29: -0.005227331084 | V29: 0 | AA29: 0.07 | AB29: 8 | AC29: =MMULT(AC28:AF28,AC$4:AF$7) -> 0.4504581108 | AD29: 0.1866986107 | AE29: 0.3500831893 | AF29: 0.01276008922 | AG29: 1 | AH29: 417.3582695 | AI29: 184.3517255 | AJ29: 138.9818486 | AK29: 0 | AL29: 0.03074376606 | AM29: 0.01015951607 | AN29: -0.003996783078 | AO29: 0 | BA29: 21 | BB29: 17082.57022 | BC29: 0.6714433423 | BD29: 29708.44395 | BE29: 0.9013973453 | DS29: 21 | DT29: 17082.57022 | DU29: 0.6714433423 | DV29: 29708.44395 | DW29: 0.9013973453 | DX29: 21 | DY29: 3060.730049 | DZ29: -2666.523595 | EA29: tx A | EB29: 0 | EG29: 8000 | EH29: 1 | EI29: 0 | EJ29: -12747.88377 | EK29: -23918.22546 | EL29: 1
A30: COSTS | B30: Treatment A | C30: Treatment B | H30: 0.08 | I30: 9 | J30: =MMULT(J29:M29,J$4:M$7) -> 0.3676378801 | K30: 0.1341492567 | L30: 0.4820808857 | M30: 0.01613197753 | N30: 1 | O30: 22.61693605 | P30: 16.42383335 | Q30: 191.38449 | R30: 0 | S30: 0.02509128532 | T30: 0.007299955383 | U30: -0.005503756778 | V30: 0 | AA30: 0.08 | AB30: 9 | AC30: =MMULT(AC29:AF29,AC$4:AF$7) -> 0.4411180986 | AD30: 0.1704345825 | AE30: 0.3734465977 | AF30: 0.01500072112 | AG30: 1 | AH30: 408.7045651 | AI30: 168.2921434 | AJ30: 148.2570431 | AK30: 0 | AL30: 0.03010631023 | AM30: 0.009274481866 | AN30: -0.004263515324 | AO30: 0 | BA30: 22 | BB30: 16630.96965 | BC30: 0.7553506639 | BD30: 29897.71782 | BE30: 1.142104087 | DS30: 22 | DT30: 16630.96965 | DU30: 0.7553506639 | DV30: 29897.71782 | DW30: 1.142104087 | DX30: 22 | DY30: 6029.55027 | DZ30: 4365.40479 | EA30: tx A | EB30: 0 | EG30: 8400 | EH30: 1 | EI30: 0 | EJ30: -12546.90627 | EK30: -23583.03215 | EL30: 1
A31: SILENT | B31: =Parameters!D24+Parameters!D27 -> 61.51960197 | C31: =Parameters!D24+Parameters!D28 -> 926.519602 | H31: 0.09 | I31: 10 | J31: =MMULT(J30:M30,J$4:M$7) -> 0.3541852495 | K31: 0.1232491785 | L31: 0.5039412244 | M31: 0.01862434755 | N31: 1 | O31: 21.78933557 | P31: 15.08934168 | Q31: 200.0629709 | R31: 0 | S31: 0.02417314328 | T31: 0.006706809466 | U31: -0.005753328979 | V31: 0 | AA31: 0.09 | AB31: 10 | AC31: =MMULT(AC30:AF30,AC$4:AF$7) -> 0.4293456257 | AD31: 0.158358441 | AE31: 0.3950087963 | AF31: 0.01728713701 | AG31: 1 | AH31: 397.7971382 | AI31: 156.3678044 | AJ31: 156.8171634 | AK31: 0 | AL31: 0.02930283895 | AM31: 0.008617338498 | AN31: -0.004509683758 | AO31: 0 | BA31: 23 | BB31: 17236.22814 | BC31: 0.9262293832 | BD31: 32140.85455 | BE31: 1.389252468 | DS31: 23 | DT31: 17236.22814 | DU31: 0.9262293832 | DV31: 32140.85455 | DW31: 1.389252468 | DX31: 23 | DY31: 10550.65336 | DZ31: 9536.71948 | EA31: tx A | EB31: 0 | EG31: 8800 | EH31: 1 | EI31: 0 | EJ31: -12345.92876 | EK31: -23247.83883 | EL31: 1
A32: ACTIVE | B32: =Parameters!D25+Parameters!D27 -> 122.4295517 | C32: =Parameters!D25+Parameters!D28 -> 987.4295517 | H32: 0.10 | I32: 11 | J32: =MMULT(J31:M31,J$4:M$7) -> 0.340059716 | K32: 0.1147818203 | L32: 0.5240018238 | M32: 0.02115663989 | N32: 1 | O32: 20.92033837 | P32: 14.05268681 | Q32: 208.0269614 | R32: 0 | S32: 0.02320907561 | T32: 0.006246044057 | U32: -0.005982354155 | V32: 0 | AA32: 0.10 | AB32: 11 | AC32: =MMULT(AC31:AF31,AC$4:AF$7) -> 0.4162921963 | AD32: 0.1489435233 | AE32: 0.4151505453 | AF32: 0.0196137351 | AG32: 1 | AH32: 385.70288 | AI32: 147.0712364 | AJ32: 164.81337 | AK32: 0 | AL32: 0.0284119424 | AM32: 0.00810501006 | AN32: -0.004739635392 | AO32: 0 | BA32: 24 | BB32: 19084.90301 | BC32: 1.013775254 | BD32: 32781.02448 | BE32: 1.480247926 | DS32: 24 | DT32: 19084.90301 | DU32: 1.013775254 | DV32: 32781.02448 | DW32: 1.480247926 | DX32: 24 | DY32: 11328.35462 | DZ32: 11626.41331 | EA32: tx B | EB32: 298.0586874 | EG32: 9200 | EH32: 1 | EI32: 0 | EJ32: -12144.95126 | EK32: -22912.64552 | EL32: 1
A33: COMPL | B33: =Parameters!D26 -> 396.9966362 | C33: =Parameters!E26 -> 396.9966362 | H33: 0.11 | I33: 12 | J33: =MMULT(J32:M32,J$4:M$7) -> 0.3258067606 | K33: 0.1078579426 | L33: 0.5426111275 | M33: 0.02372416931 | N33: 1 | O33: 20.04350223 | P33: 13.20499956 | Q33: 215.4147924 | R33: 0 | S33: 0.02223631141 | T33: 0.005869269712 | U33: -0.006194810372 | V33: 0 | AA33: 0.11 | AB33: 12 | AC33: =MMULT(AC32:AF32,AC$4:AF$7) -> 0.4026607988 | AD33: 0.1412442374 | AE33: 0.4341185046 | AF33: 0.02197645919 | AG33: 1 | AH33: 373.073123 | AI33: 139.468734 | AJ33: 172.3435861 | AK33: 0 | AL33: 0.02748159952 | AM33: 0.007686040584 | AN33: -0.004956186261 | AO33: 0 | BA33: 25 | BB33: 17862.14651 | BC33: 1.282251764 | BD33: 33261.15836 | BE33: 1.727512793 | DS33: 25 | DT33: 17862.14651 | DU33: 1.282251764 | DV33: 33261.15836 | DW33: 1.727512793 | DX33: 25 | DY33: 20605.40642 | DZ33: 18564.22543 | EA33: tx A | EB33: 0 | EG33: 9600 | EH33: 1 | EI33: 0 | EJ33: -11943.97375 | EK33: -22577.4522 | EL33: 1
A34: DEAD | B34: 0 | C34: 0 | H34: 1.00 | I34: 13 | J34: =MMULT(J33:M33,J$4:M$7) -> 0.3117402589 | K34: 0.1019415731 | L34: 0.5599947535 | M34: 0.02632341453 | N34: =N22/(1+disc) -> 0.9661835749 | O34: 18.52960062 | P34: 12.05860975 | Q34: 214.7980999 | R34: 0 | S34: 0.02055678519 | T34: 0.005359730051 | U34: -0.006177075783 | V34: 0 | AA34: 1.00 | AB34: 13 | AC34: =MMULT(AC33:AF33,AC$4:AF$7) -> 0.3888777288 | AD34: 0.1346739492 | AE34: 0.4520760919 | AF34: 0.02437223017 | AG34: =AG22/(1+disc) -> 0.9661835749 | AH34: 348.1186845 | AI34: 128.4840939 | AJ34: 173.4035631 | AK34: 0 | AL34: 0.02564338646 | AM34: 0.007080683478 | AN34: -0.004986668646 | AO34: 0 | BA34: 26 | BB34: 17465.66062 | BC34: -0.1038244616 | BD34: 29727.98755 | BE34: 0.311541102 | DS34: 26 | DT34: 17465.66062 | DU34: -0.1038244616 | DV34: 29727.98755 | DW34: 0.311541102 | DX34: 26 | DY34: -20580.39447 | DZ34: -20381.75449 | EA34: tx B | EB34: 198.6399796 | EG34: 10000 | EH34: 1 | EI34: 0 | EJ34: -11742.99625 | EK34: -22242.25888 | EL34: 1
H35: 1.01 | I35: 14 | J35: =MMULT(J34:M34,J$4:M$7) -> 0.2980360933 | K35: 0.09670826036 | L35: 0.5763040625 | M35: 0.02895158381 | N35: 0.9661835749 | O35: 17.71503559 | P35: 11.43956421 | Q35: 221.0538882 | R35: 0 | S35: 0.0196531047 | T35: 0.005084580839 | U35: -0.006356977179 | V35: 0 | AA35: 1.01 | AB35: 14 | AC35: =MMULT(AC34:AF34,AC$4:AF$7) -> 0.375198692 | AD35: 0.1288678068 | AE35: 0.4691349072 | AF35: 0.02679859405 | AG35: 0.9661835749 | AH35: 335.8733746 | AI35: 122.9448122 | AJ35: 179.9468407 | AK35: 0 | AL35: 0.02474136302 | AM35: 0.006775416893 | AN35: -0.005174837544 | AO35: 0 | BA35: 27 | BB35: 17408.98541 | BC35: 0.8052050014 | BD35: 31557.48323 | BE35: 1.036386469 | DS35: 27 | DT35: 17408.98541 | DU35: 0.8052050014 | DV35: 31557.48323 | DW35: 1.036386469 | DX35: 27 | DY35: 6747.16463 | DZ35: -465.8891627 | EA35: tx A | EB35: 0 | EG35: 10400 | EH35: 1 | EI35: 0 | EJ35: -11542.01874 | EK35: -21907.06557 | EL35: 1
A36: UTILITIES | B36: Value per month (converted) | C36: Value per year (reference) | H36: 1.02 | I36: 15 | J36: =MMULT(J35:M35,J$4:M$7) -> 0.284788131 | K36: 0.0919602668 | L36: 0.5916452486 | M36: 0.03160635362 | N36: 0.9661835749 | O36: 16.92758692 | P36: 10.8779268 | Q36: 226.9383319 | R36: 0 | S36: 0.01877950719 | T36: 0.004834948005 | U36: -0.006526199602 | V36: 0 | AA36: 1.02 | AB36: 15 | AC36: =MMULT(AC35:AF35,AC$4:AF$7) -> 0.3617743205 | AD36: 0.1235980204 | AE36: 0.4853741553 | AF36: 0.0292535038 | AG36: 0.9661835749 | AH36: 323.8560381 | AI36: 117.9172346 | AJ36: 186.1757555 | AK36: 0 | AL36: 0.02385613273 | AM36: 0.006498350024 | AN36: -0.005353966126 | AO36: 0 | BA36: 28 | BB36: 17383.53956 | BC36: 0.9926362502 | BD36: 30627.37111 | BE36: 1.251776206 | DS36: 28 | DT36: 17383.53956 | DU36: 0.9926362502 | DV36: 30627.37111 | DW36: 1.251776206 | DX36: 28 | DY36: 12395.54795 | DZ36: 6925.915086 | EA36: tx A | EB36: 0 | EG36: 10800 | EH36: 1 | EI36: 0 | EJ36: -11341.04124 | EK36: -21571.87225 | EL36: 1
A37: SILENT | B37: =C37/12 -> 0.06825 | C37: =Parameters!D32 -> 0.819 | H37: 1.03 | I37: 16 | J37: =MMULT(J36:M36,J$4:M$7) -> 0.2720416878 | K37: 0.08757582527 | L37: 0.6060967761 | M37: 0.03428571078 | N37: 0.9661835749 | O37: 16.16994817 | P37: 10.35929375 | Q37: 232.4815279 | R37: 0 | S37: 0.01793898086 | T37: 0.004604429461 | U37: -0.006685608561 | V37: 0 | AA37: 1.03 | AB37: 16 | AC37: =MMULT(AC36:AF36,AC$4:AF$7) -> 0.348690624 | AD37: 0.1187215374 | AE37: 0.5008526547 | AF37: 0.03173518387 | AG37: 0.9661835749 | AH37: 312.1436697 | AI37: 113.2648836 | AJ37: 192.1128687 | AK37: 0 | AL37: 0.02299336724 | AM37: 0.00624196167 | AN37: -0.005524703196 | AO37: 0 | BA37: 29 | BB37: 16120.14185 | BC37: 0.6272359118 | BD37: 31778.76705 | BE37: 1.046444999 | DS37: 29 | DT37: 16120.14185 | DU37: 0.6272359118 | DV37: 31778.76705 | DW37: 1.046444999 | DX37: 29 | DY37: 2696.935502 | DZ37: -385.4170855 | EA37: tx A | EB37: 0 | EG37: 11200 | EH37: 1 | EI37: 0 | EJ37: -11140.06373 | EK37: -21236.67893 | EL37: 1
A38: ACTIVE | B38: =C38/12 -> 0.05441666667 | C38: =Parameters!D33 -> 0.653 | H38: 1.04 | I38: 17 | J38: =MMULT(J37:M37,J$4:M$7) -> 0.259813525 | K38: 0.08347877479 | L38: 0.6197198435 | M38: 0.03698785671 | N38: 0.9661835749 | O38: 15.4431156 | P38: 9.874656013 | Q38: 237.70695 | R38: 0 | S38: 0.017132631 | T38: 0.004389020929 | U38: -0.006835879111 | V38: 0 | AA38: 1.04 | AB38: 17 | AC38: =MMULT(AC37:AF37,AC$4:AF$7) -> 0.3359939612 | AD38: 0.1141477248 | AE38: 0.5156162683 | AF38: 0.03424204574 | AG38: 0.9661835749 | AH38: 300.7777693 | AI38: 108.9012915 | AJ38: 197.7757721 | AK38: 0 | AL38: 0.02215612353 | AM38: 0.006001486658 | AN38: -0.00568755465 | AO38: 0 | BA38: 30 | BB38: 16842.23114 | BC38: 0.4699294236 | BD38: 31160.78788 | BE38: 0.8058786527 | DS38: 30 | DT38: 16842.23114 | DU38: 0.4699294236 | DV38: 31160.78788 | DW38: 0.8058786527 | DX38: 30 | DY38: -2744.348437 | DZ38: -6984.428298 | EA38: tx A | EB38: 0 | EG38: 11600 | EH38: 1 | EI38: 0 | EJ38: -10939.08623 | EK38: -20901.48562 | EL38: 1
A39: COMPL | B39: -0.01141666667 | C39: =Parameters!D34 -> -0.137 | H39: 1.05 | I39: 18 | J39: =MMULT(J38:M38,J$4:M$7) -> 0.2481037894 | K39: 0.07962038805 | L39: 0.6325646737 | M39: 0.03971114883 | N39: 0.9661835749 | O39: 14.74709794 | P39: 9.418249676 | Q39: 242.6338625 | R39: 0 | S39: 0.01636046727 | T39: 0.004186160499 | U39: -0.006977565241 | V39: 0 | AA39: 1.05 | AB39: 18 | AC39: =MMULT(AC38:AF38,AC$4:AF$7) -> 0.3237064525 | AD39: 0.1098184066 | AE39: 0.5297025059 | AF39: 0.03677263508 | AG39: 0.9661835749 | AH39: 289.7781386 | AI39: 104.7709565 | AJ39: 203.1788532 | AK39: 0 | AL39: 0.02134586027 | AM39: 0.005773866303 | AN39: -0.005842934244 | AO39: 0 | BA39: 31 | BB39: 18570.75743 | BC39: 1.081462142 | BD39: 30315.32007 | BE39: 1.228869496 | DS39: 31 | DT39: 18570.75743 | DU39: 1.081462142 | DV39: 30315.32007 | DW39: 1.228869496 | DX39: 31 | DY39: 13873.10681 | DZ39: 6550.764804 | EA39: tx A | EB39: 0 | EG39: 12000 | EH39: 1 | EI39: 0 | EJ39: -10738.10872 | EK39: -20566.2923 | EL39: 1
A40: DEAD | B40: 0 | C40: 0 | H40: 1.06 | I40: 19 | J40: =MMULT(J39:M39,J$4:M$7) -> 0.2369031357 | K40: 0.07596849307 | L40: 0.644674307 | M40: 0.04245406422 | N40: 0.9661835749 | O40: 14.08133972 | P40: 8.986269131 | Q40: 247.2787742 | R40: 0 | S40: 0.01562187344 | T40: 0.003994156681 | U40: -0.007111141712 | V40: 0 | AA40: 1.06 | AB40: 19 | AC40: =MMULT(AC39:AF39,AC$4:AF$7) -> 0.311835489 | AD40: 0.1056955329 | AE40: 0.5431433797 | AF40: 0.03932559841 | AG40: 0.9661835749 | AH40: 279.1513943 | AI40: 100.8375774 | AJ40: 208.3343911 | AK40: 0 | AL40: 0.02056306485 | AM40: 0.005557100077 | AN40: -0.00599119509 | AO40: 0 | BA40: 32 | BB40: 16352.98066 | BC40: -0.3175406199 | BD40: 30944.07109 | BE40: 0.2973341501 | DS40: 32 | DT40: 16352.98066 | DU40: -0.3175406199 | DV40: 30944.07109 | DW40: 0.2973341501 | DX40: 32 | DY40: -25879.19925 | DZ40: -22024.04659 | EA40: tx B | EB40: 3855.152666 | EG40: 12400 | EH40: 1 | EI40: 0 | EJ40: -10537.13121 | EK40: -20231.09898 | EL40: 1
H41: 1.07 | I41: 20 | J41: =MMULT(J40:M40,J$4:M$7) -> 0.2261969671 | K41: 0.0725009588 | L41: 0.6560868974 | M41: 0.04521517672 | N41: 0.9661835749 | O41: 13.44497332 | P41: 8.576096506 | Q41: 251.6563201 | R41: 0 | S41: 0.01491588696 | T41: 0.003811845901 | U41: -0.007237029383 | V41: 0 | AA41: 1.07 | AB41: 20 | AC41: =MMULT(AC40:AF40,AC$4:AF$7) -> 0.3003795967 | AD41: 0.1017535615 | AE41: 0.5559671799 | AF41: 0.04189966186 | AG41: 0.9661835749 | AH41: 268.8962168 | AI41: 97.07678611 | AJ41: 213.253237 | AK41: 0 | AL41: 0.01980764007 | AM41: 0.005349845061 | AN41: -0.006132649247 | AO41: 0 | BA41: 33 | BB41: 16587.64802 | BC41: 0.3759743616 | BD41: 32878.12586 | BE41: 0.9677885929 | DS41: 33 | DT41: 16587.64802 | DU41: 0.3759743616 | DV41: 32878.12586 | DW41: 0.9677885929 | DX41: 33 | DY41: -5308.417174 | DZ41: -3844.468074 | EA41: tx B | EB41: 1463.9491 | EG41: 12800 | EH41: 1 | EI41: 0 | EJ41: -10336.15371 | EK41: -19895.90567 | EL41: 1
A42: Other parameters | B42: Values | H42: 1.08 | I42: 21 | J42: =MMULT(J41:M41,J$4:M$7) -> 0.2159679528 | K42: 0.06920179166 | L42: 0.6668371135 | M42: 0.04799314204 | N42: 0.9661835749 | O42: 12.83696859 | P42: 8.185839933 | Q42: 255.779798 | R42: 0 | S42: 0.01424136501 | T42: 0.003638387275 | U42: -0.007355610672 | V42: 0 | AA42: 1.08 | AB42: 21 | AC42: =MMULT(AC41:AF41,AC$4:AF$7) -> 0.2893320489 | AD42: 0.09797474998 | AE42: 0.5681995837 | AF42: 0.04449361738 | AG42: 0.9661835749 | AH42: 259.0065843 | AI42: 93.47165551 | AJ42: 217.94524 | AK42: 0 | AL42: 0.01907914236 | AM42: 0.005151168417 | AN42: -0.006267579949 | AO42: 0 | BA42: 34 | BB42: 17330.55428 | BC42: 0.5306801191 | BD42: 31292.55105 | BE42: 0.9398186211 | DS42: 34 | DT42: 17330.55428 | DU42: 0.5306801191 | DV42: 31292.55105 | DW42: 0.9398186211 | DX42: 34 | DY42: -1410.150706 | DZ42: -3097.992419 | EA42: tx A | EB42: 0 | EG42: 13200 | EH42: 0.9998 | EI42: 0.0002 | EJ42: -10135.1762 | EK42: -19560.71235 | EL42: 0.9998
A43: discount rate | B43: 0.035 | H43: 1.09 | I43: 22 | J43: =MMULT(J42:M42,J$4:M$7) -> 0.2061975157 | K43: 0.0660587945 | L43: 0.676957002 | M43: 0.05078668784 | N43: 0.9661835749 | O43: 12.25622134 | P43: 7.814056615 | Q43: 259.6615002 | R43: 0 | S43: 0.01359708255 | T43: 0.003473139518 | U43: -0.007467239072 | V43: 0 | AA43: 1.09 | AB43: 22 | AC43: =MMULT(AC42:AF42,AC$4:AF$7) -> 0.2786830896 | AD43: 0.09434624524 | AE43: 0.5798643515 | AF43: 0.04710631367 | AG43: 0.9661835749 | AH43: 249.4737635 | AI43: 90.00992333 | AJ43: 222.419514 | AK43: 0 | AL43: 0.01837692837 | AM43: 0.004960394376 | AN43: -0.006396249288 | AO43: 0 | BA43: 35 | BB43: 16604.57584 | BC43: 1.374978786 | BD43: 30363.10914 | BE43: 1.466616619 | DS43: 35 | DT43: 16604.57584 | DU43: 1.374978786 | DV43: 30363.10914 | DW43: 1.466616619 | DX43: 35 | DY43: 24644.78773 | DZ43: 13635.38944 | EA43: tx A | EB43: 0 | EG43: 13600 | EH43: 0.9998 | EI43: 0.0002 | EJ43: -9934.198699 | EK43: -19225.51903 | EL43: 0.9998
A44: value per QALY | B44: 30000 | H44: 1.10 | I44: 23 | J44: =MMULT(J43:M43,J$4:M$7) -> 0.1968667045 | K44: 0.06306216034 | L44: 0.6864765285 | M44: 0.05359460667 | N44: 0.9661835749 | O44: 11.70160512 | P44: 7.459586493 | Q44: 263.3129204 | R44: 0 | S44: 0.01298178993 | T44: 0.003315587013 | U44: -0.007572245121 | V44: 0 | AA44: 1.10 | AB44: 23 | AC44: =MMULT(AC43:AF43,AC$4:AF$7) -> 0.2684212981 | AD44: 0.09085828374 | AE44: 0.5909837682 | AF44: 0.0497366499 | AG44: 0.9661835749 | AH44: 240.2875307 | AI44: 86.68227477 | AJ44: 226.6846068 | AK44: 0 | AL44: 0.01770024502 | AM44: 0.004777009604 | AN44: -0.006518903079 | AO44: 0 | BA44: 36 | BB44: 16395.76571 | BC44: 0.4927959639 | BD44: 29685.79802 | BE44: 0.811071977 | DS44: 36 | DT44: 16395.76571 | DU44: 0.4927959639 | DV44: 29685.79802 | DW44: 0.811071977 | DX44: 36 | DY44: -1611.886793 | DZ44: -5353.638707 | EA44: tx A | EB44: 0 | EG44: 14000 | EH44: 0.9996 | EI44: 0.0004 | EJ44: -9733.221193 | EK44: -18890.32572 | EL44: 0.9996
A45: default value per QALY | B45: 30000 | H45: 1.11 | I45: 24 | J45: =MMULT(J44:M44,J$4:M$7) -> 0.1879566992 | K45: 0.06020362579 | L45: 0.6954239241 | M45: 0.05641575082 | N45: 0.9661835749 | O45: 11.17200128 | P45: 7.121452093 | Q45: 266.7448876 | R45: 0 | S45: 0.01239424611 | T45: 0.003165295301 | U45: -0.007670940226 | V45: 0 | AA45: 1.11 | AB45: 24 | AC45: =MMULT(AC44:AF44,AC$4:AF$7) -> 0.2585344249 | AD45: 0.08750307721 | AE45: 0.6015789266 | AF45: 0.05238357133 | AG45: 0.9661835749 | AH45: 231.4369202 | AI45: 83.48127952 | AJ45: 230.748609 | AK45: 0 | AL45: 0.01704828454 | AM45: 0.004600604623 | AN45: -0.006635773989 | AO45: 0 | BA45: 37 | BB45: 17623.71101 | BC45: -0.1813637934 | BD45: 31104.94081 | BE45: 0.3905338018 | DS45: 37 | DT45: 17623.71101 | DU45: -0.1813637934 | DV45: 31104.94081 | DW45: 0.3905338018 | DX45: 37 | DY45: -23064.62481 | DZ45: -19388.92675 | EA45: tx B | EB45: 3675.69806 | EG45: 14400 | EH45: 0.9995 | EI45: 0.0005 | EJ45: -9532.243688 | EK45: -18555.1324 | EL45: 0.9995
H46: 2.00 | I46: 25 | J46: =MMULT(J45:M45,J$4:M$7) -> 0.179449097 | K46: 0.05747595934 | L46: 0.7038259154 | M46: 0.05924902825 | N46: 0.9335107004 | O46: 10.30561929 | P46: 6.568886961 | Q46: 260.8383121 | R46: 0 | S46: 0.01143307977 | T46: 0.002919694855 | U46: -0.007501081348 | V46: 0 | AA46: 2.00 | AB46: 25 | AC46: =MMULT(AC45:AF45,AC$4:AF$7) -> 0.2490098996 | AD46: 0.08427412206 | AE46: 0.6116699123 | AF46: 0.05504606603 | AG46: 0.9335107004 | AH46: 215.372637 | AI46: 77.68186755 | AJ46: 226.6852413 | AK46: 0 | AL46: 0.01586494495 | AM46: 0.004281002412 | AN46: -0.006518921327 | AO46: 0 | BA46: 38 | BB46: 17687.15921 | BC46: 0.7637828809 | BD46: 31800.37845 | BE46: 1.182017708 | DS46: 38 | DT46: 17687.15921 | DU46: 0.7637828809 | DV46: 31800.37845 | DW46: 1.182017708 | DX46: 38 | DY46: 5226.327217 | DZ46: 3660.152803 | EA46: tx A | EB46: 0 | EG46: 14800 | EH46: 0.9992 | EI46: 0.0008 | EJ46: -9331.266182 | EK46: -18219.93909 | EL46: 0.9992
H47: 2.01 | I47: 26 | J47: =MMULT(J46:M46,J$4:M$7) -> 0.1713260679 | K47: 0.05487265042 | L47: 0.7117078824 | M47: 0.06209339926 | N47: 0.9335107004 | O47: 9.839120171 | P47: 6.271356616 | Q47: 263.7593739 | R47: 0 | S47: 0.01091554448 | T47: 0.002787450561 | U47: -0.007585084046 | V47: 0 | AA47: 2.01 | AB47: 26 | AC47: =MMULT(AC46:AF46,AC$4:AF$7) -> 0.2398351386 | AD47: 0.08116577054 | AE47: 0.6212759285 | AF47: 0.05772316231 | AG47: 0.9335107004 | AH47: 207.4372398 | AI47: 74.81666356 | AJ47: 230.2452368 | AK47: 0 | AL47: 0.01528040161 | AM47: 0.004123102691 | AN47: -0.006621298218 | AO47: 0 | BA47: 39 | BB47: 16960.98785 | BC47: 0.3329979928 | BD47: 27464.39164 | BE47: 0.3937204908 | DS47: 39 | DT47: 16960.98785 | DU47: 0.3329979928 | DV47: 27464.39164 | DW47: 0.3937204908 | DX47: 39 | DY47: -6971.048065 | DZ47: -15652.77692 | EA47: tx A | EB47: 0 | EG47: 15200 | EH47: 0.9989 | EI47: 0.0011 | EJ47: -9130.288677 | EK47: -17884.74577 | EL47: 0.9989
H48: 2.02 | I48: 27 | J48: =MMULT(J47:M47,J$4:M$7) -> 0.1635704335 | K48: 0.05238771863 | L48: 0.7190939742 | M48: 0.06494787364 | N48: 0.9335107004 | O48: 9.393720241 | P48: 5.987355511 | Q48: 266.496664 | R48: 0 | S48: 0.01042141669 | T48: 0.002661219652 | U48: -0.007663801914 | V48: 0 | AA48: 2.02 | AB48: 27 | AC48: =MMULT(AC47:AF47,AC$4:AF$7) -> 0.2309977275 | AD48: 0.07817296354 | AE48: 0.6304153823 | AF48: 0.06041392666 | AG48: 0.9335107004 | AH48: 199.7936218 | AI48: 72.05796574 | AJ48: 233.6323239 | AK48: 0 | AL48: 0.01471735154 | AM48: 0.003971072463 | AN48: -0.006718702683 | AO48: 0 | BA48: 40 | BB48: 18519.72035 | BC48: 0.6652780808 | BD48: 30936.77423 | BE48: 0.9158556695 | DS48: 40 | DT48: 18519.72035 | DU48: 0.6652780808 | DV48: 30936.77423 | DW48: 0.9158556695 | DX48: 40 | DY48: 1438.622071 | DZ48: -3461.104146 | EA48: tx A | EB48: 0 | EG48: 15600 | EH48: 0.9981 | EI48: 0.0019 | EJ48: -8929.311171 | EK48: -17549.55245 | EL48: 0.9981
H49: 2.03 | I49: 28 | J49: =MMULT(J48:M48,J$4:M$7) -> 0.1561657001 | K49: 0.05001559516 | L49: 0.7260071966 | M49: 0.06781150815 | N49: 0.9335107004 | O49: 8.968472275 | P49: 5.716247188 | Q49: 269.0587084 | R49: 0 | S49: 0.009949645531 | T49: 0.002540719242 | U49: -0.007737480138 | V49: 0 | AA49: 2.03 | AB49: 28 | AC49: =MMULT(AC48:AF48,AC$4:AF$7) -> 0.2224855275 | AD49: 0.0752910634 | AE49: 0.6391059471 | AF49: 0.06311746192 | AG49: 0.9335107004 | AH49: 192.4312842 | AI49: 69.4014992 | AJ49: 236.8530525 | AK49: 0 | AL49: 0.01417502136 | AM49: 0.003824676142 | AN49: -0.006811323077 | AO49: 0 | BA49: 41 | BB49: 17029.8015 | BC49: 1.37508422 | BD49: 32712.61149 | BE49: 1.820294483 | DS49: 41 | DT49: 17029.8015 | DU49: 1.37508422 | DV49: 32712.61149 | DW49: 1.820294483 | DX49: 41 | DY49: 24222.7251 | DZ49: 21896.22301 | EA49: tx A | EB49: 0 | EG49: 16000 | EH49: 0.9979 | EI49: 0.0021 | EJ49: -8728.333666 | EK49: -17214.35914 | EL49: 0.9979
H50: 2.04 | I50: 29 | J50: =MMULT(J49:M49,J$4:M$7) -> 0.1490960649 | K50: 0.04775104757 | L50: 0.7324694834 | M50: 0.07068340418 | N50: 0.9335107004 | O50: 8.56246873 | P50: 5.457433636 | Q50: 271.4536358 | R50: 0 | S50: 0.009499224184 | T50: 0.002425683529 | U50: -0.00780635248 | V50: 0 | AA50: 2.04 | AB50: 29 | AC50: =MMULT(AC49:AF49,AC$4:AF$7) -> 0.2142867351 | AD50: 0.07251574849 | AE50: 0.6473646107 | AF50: 0.06583290576 | AG50: 0.9335107004 | AH50: 185.3400177 | AI50: 66.84328038 | AJ50: 239.9137183 | AK50: 0 | AL50: 0.01365265903 | AM50: 0.003683694195 | AN50: -0.006899340449 | AO50: 0 | BA50: 42 | BB50: 15223.34989 | BC50: 0.2435640982 | BD50: 30365.26046 | BE50: 0.5176627834 | DS50: 42 | DT50: 15223.34989 | DU50: 0.2435640982 | DV50: 30365.26046 | DW50: 0.5176627834 | DX50: 42 | DY50: -7916.426943 | DZ50: -14835.37696 | EA50: tx A | EB50: 0 | EG50: 16400 | EH50: 0.9972 | EI50: 0.0028 | EJ50: -8527.356161 | EK50: -16879.16582 | EL50: 0.9972
H51: 2.05 | I51: 30 | J51: =MMULT(J50:M50,J$4:M$7) -> 0.1423464071 | K51: 0.04558913068 | L51: 0.7385017566 | M51: 0.07356270567 | N51: 0.9335107004 | O51: 8.174841237 | P51: 5.210349677 | Q51: 273.6891999 | R51: 0 | S51: 0.009069189276 | T51: 0.002315861307 | U51: -0.007870641917 | V51: 0 | AA51: 2.05 | AB51: 30 | AC51: =MMULT(AC50:AF50,AC$4:AF$7) -> 0.206389912 | AD51: 0.06984294609 | AE51: 0.6552077127 | AF51: 0.0685594292 | AG51: 0.9335107004 | AH51: 178.5099294 | AI51: 64.37955513 | AJ51: 242.8203766 | AK51: 0 | AL51: 0.01314953581 | AM51: 0.003547919733 | AN51: -0.006982928939 | AO51: 0 | BA51: 43 | BB51: 16443.0882 | BC51: 0.2954814557 | BD51: 27964.85913 | BE51: 0.2883850367 | DS51: 43 | DT51: 16443.0882 | DU51: 0.2954814557 | DV51: 27964.85913 | DW51: 0.2883850367 | DX51: 43 | DY51: -7578.644533 | DZ51: -19313.30803 | EA51: tx A | EB51: 0 | EG51: 16800 | EH51: 0.9956 | EI51: 0.0044 | EJ51: -8326.378655 | EK51: -16543.9725 | EL51: 0.9956
H52: 2.06 | I52: 31 | J52: =MMULT(J51:M51,J$4:M$7) -> 0.1359022706 | K52: 0.04352515339 | L52: 0.7441239789 | M52: 0.07644859707 | N52: 0.9335107004 | O52: 7.804759593 | P52: 4.974459163 | Q52: 275.772799 | R52: 0 | S52: 0.008658619777 | T52: 0.002211014272 | U52: -0.007930561204 | V52: 0 | AA52: 2.06 | AB52: 31 | AC52: =MMULT(AC51:AF51,AC$4:AF$7) -> 0.1987839992 | AD52: 0.06726878891 | AE52: 0.6626509766 | AF52: 0.07129623534 | AG52: 0.9335107004 | AH52: 171.931454 | AI52: 62.00675869 | AJ52: 245.5788548 | AK52: 0 | AL52: 0.01266494709 | AM52: 0.003417156305 | AN52: -0.007062256124 | AO52: 0 | BA52: 44 | BB52: 14777.6936 | BC52: 0.8575863367 | BD52: 27411.70346 | BE52: 0.9191454388 | DS52: 44 | DT52: 14777.6936 | DU52: 0.8575863367 | DV52: 27411.70346 | DW52: 0.9191454388 | DX52: 44 | DY52: 10949.8965 | DZ52: 162.6597056 | EA52: tx A | EB52: 0 | EG52: 17200 | EH52: 0.9946 | EI52: 0.0054 | EJ52: -8125.40115 | EK52: -16208.77919 | EL52: 0.9946
H53: 2.07 | I53: 32 | J53: =MMULT(J52:M52,J$4:M$7) -> 0.129749842 | K53: 0.04155465496 | L53: 0.7493552016 | M53: 0.07934030149 | N53: 0.9335107004 | O53: 7.451430496 | P53: 4.749252284 | Q53: 277.7114933 | R53: 0 | S53: 0.008266635594 | T53: 0.002110915828 | U53: -0.007986313381 | V53: 0 | AA53: 2.07 | AB53: 32 | AC53: =MMULT(AC52:AF52,AC$4:AF$7) -> 0.1914583182 | AD53: 0.06478958636 | AE53: 0.6697095374 | AF53: 0.07404255806 | AG53: 0.9335107004 | AH53: 165.5953556 | AI53: 59.72148915 | AJ53: 248.1947617 | AK53: 0 | AL53: 0.01219821253 | AM53: 0.003291216434 | AN53: -0.007137483303 | AO53: 0 | BA53: 45 | BB53: 15403.7375 | BC53: 0.9513222588 | BD53: 31134.92686 | BE53: 1.180481654 | DS53: 45 | DT53: 15403.7375 | DU53: 0.9513222588 | DV53: 31134.92686 | DW53: 1.180481654 | DX53: 45 | DY53: 13135.93027 | DZ53: 4279.522763 | EA53: tx A | EB53: 0 | EG53: 17600 | EH53: 0.9928 | EI53: 0.0072 | EJ53: -7924.423644 | EK53: -15873.58587 | EL53: 0.9928
H54: 2.08 | I54: 33 | J54: =MMULT(J53:M53,J$4:M$7) -> 0.1238759257 | K54: 0.03967338743 | L54: 0.7542136079 | M54: 0.08223707892 | N54: 0.9335107004 | O54: =c_sil_A*J54*N54 -> 7.114096146 | P54: =c_act_A*K54*N54 -> 4.534243541 | Q54: =c_compl_A*L54*N54 -> 279.5120216 | R54: =c_dead_A*M54*N54 -> 0 | S54: =u_sil*J54*N54 -> 0.007892396025 | T54: =u_act*K54*N54 -> 0.002015350182 | U54: =u_compl*L54*N54 -> -0.008038092237 | V54: =u_dead*M54*N54 -> 0 | AA54: 2.08 | AB54: 33 | AC54: =MMULT(AC53:AF53,AC$4:AF$7) -> 0.1844025682 | AD54: 0.06240180499 | AE54: 0.6763979659 | AF54: 0.07679766092 | AG54: 0.9335107004 | AH54: =c_sil_B*AC54*AG54 -> 159.4927248 | AI54: =c_act_B*AD54*AG54 -> 57.52048947 | AJ54: =c_compl_B*AE54*AG54 -> 250.6734974 | AK54: =c_dead_B*AF54*AG54 -> 0 | AL54: =u_sil*AC54*AG54 -> 0.01174867584 | AM54: =u_act*AD54*AG54 -> 0.003169920625 | AN54: =u_compl*AE54*AG54 -> -0.007208765769 | AO54: =u_dead*AF54*AG54 -> 0 | BA54: 46 | BB54: 16445.13248 | BC54: 0.7158142305 | BD54: 30023.33935 | BE54: 0.9766415724 | DS54: 46 | DT54: 16445.13248 | DU54: 0.7158142305 | DV54: 30023.33935 | DW54: 0.9766415724 | DX54: 46 | DY54: 5029.294432 | DZ54: -724.0921772 | EA54: tx A | EB54: 0 | EG54: 18000 | EH54: 0.9911 | EI54: 0.0089 | EJ54: -7723.446139 | EK54: -15538.39255 | EL54: 0.9911
H55: 2.09 | I55: 34 | J55: =MMULT(J54:M54,J$4:M$7) -> 0.1182679197 | K55: 0.03787730158 | L55: 0.7587165542 | M55: 0.08513822453 | N55: 0.9335107004 | O55: 6.792032807 | P55: 4.328970153 | Q55: 281.1808162 | R55: 0 | S55: 0.007535098152 | T55: 0.001924111642 | U55: -0.00808608275 | V55: 0 | AA55: 2.09 | AB55: 34 | AC55: =MMULT(AC54:AF54,AC$4:AF$7) -> 0.1776068176 | AD55: 0.0601020546 | AE55: 0.6827302918 | AF55: 0.07956083596 | AG55: 0.9335107004 | AH55: 153.6149716 | AI55: 55.40063463 | AJ55: 253.0202612 | AK55: 0 | AL55: 0.01131570427 | AM55: 0.003053096661 | AN55: -0.007276253042 | AO55: 0 | BA55: 47 | BB55: 16094.05796 | BC55: 0.8379807599 | BD55: 29618.07082 | BE55: 1.060410826 | DS55: 47 | DT55: 16094.05796 | DU55: 0.8379807599 | DV55: 29618.07082 | DW55: 1.060410826 | DX55: 47 | DY55: 9045.364839 | DZ55: 2194.253948 | EA55: tx A | EB55: 0 | EG55: 18400 | EH55: 0.9894 | EI55: 0.0106 | EJ55: -7522.468633 | EK55: -15203.19924 | EL55: 0.9894
H56: 2.10 | I56: 35 | J56: =MMULT(J55:M55,J$4:M$7) -> 0.1129137895 | K56: 0.03616253537 | L56: 0.7628806081 | M56: 0.08804306708 | N56: 0.9335107004 | O56: 6.484549357 | P56: 4.13299073 | Q56: 282.7240171 | R56: 0 | S56: 0.007193975245 | T56: 0.001837004022 | U56: -0.008130461489 | V56: 0 | AA56: 2.10 | AB56: 35 | AC56: =MMULT(AC55:AF55,AC$4:AF$7) -> 0.1710614948 | AD56: 0.05788707797 | AE56: 0.6887200245 | AF56: 0.0823314027 | AG56: 0.9335107004 | AH56: 147.9538174 | AI56: 53.35892222 | AJ56: 255.2400598 | AK56: 0 | AL56: 0.01089868797 | AM56: 0.002940579081 | AN56: -0.0073400891 | AO56: 0 | BA56: 48 | BB56: 15869.44969 | BC56: 0.2081970991 | BD56: 28770.54293 | BE56: 0.2533973358 | DS56: 48 | DT56: 15869.44969 | DU56: 0.2081970991 | DV56: 28770.54293 | DW56: 0.2533973358 | DX56: 48 | DY56: -9623.536713 | DZ56: -21168.62286 | EA56: tx A | EB56: 0 | EG56: 18800 | EH56: 0.9872 | EI56: 0.0128 | EJ56: -7321.491128 | EK56: -14868.00592 | EL56: 0.9872
H57: 2.11 | I57: 36 | J57: =MMULT(J56:M56,J$4:M$7) -> 0.1078020442 | K57: 0.03452540394 | L57: 0.7667215845 | M57: 0.09095096736 | N57: 0.9335107004 | O57: 6.190985879 | P57: 3.945884129 | Q57: 284.1474853 | R57: 0 | S57: 0.00686829519 | T57: 0.001753840134 | U57: -0.008171397005 | V57: 0 | AA57: 2.11 | AB57: 36 | AC57: =MMULT(AC56:AF56,AC$4:AF$7) -> 0.1647573769 | AD57: 0.05575374291 | AE57: 0.6943801731 | AF57: 0.08510870708 | AG57: 0.9335107004 | AH57: 142.5012852 | AI57: 51.39246504 | AJ57: 257.3377143 | AK57: 0 | AL57: 0.01049703935 | AM57: 0.002832208773 | AN57: -0.007400412589 | AO57: 0 | BA57: 49 | BB57: 15767.15869 | BC57: 0.6301442015 | BD57: 30574.57847 | BE57: 1.10438202 | DS57: 49 | DT57: 15767.15869 | DU57: 0.6301442015 | DV57: 30574.57847 | DW57: 1.10438202 | DX57: 49 | DY57: 3137.167356 | DZ57: 2556.88214 | EA57: tx A | EB57: 0 | EG57: 19200 | EH57: 0.985 | EI57: 0.015 | EJ57: -7120.513622 | EK57: -14532.8126 | EL57: 0.985
H58: 3.00 | I58: 37 | J58: =MMULT(J57:M57,J$4:M$7) -> 0.102921712 | K58: 0.03296239058 | L58: 0.7702545806 | M58: 0.09386131677 | N58: 0.9019427057 | O58: 5.710833116 | P58: 3.639853557 | Q58: 275.8036868 | R58: 0 | S58: 0.006335612516 | T58: 0.001617817716 | U58: -0.007931449464 | V58: 0 | AA58: 3.00 | AB58: 37 | AC58: =MMULT(AC57:AF57,AC$4:AF$7) -> 0.1586855787 | AD58: 0.05369903571 | AE58: 0.6997232651 | AF58: 0.08789212049 | AG58: 0.9019427057 | AH58: 132.6083962 | AI58: 47.82462334 | AJ58: 250.5486642 | AK58: 0 | AL58: 0.009768301737 | AM58: 0.002635587098 | AN58: -0.007205175867 | AO58: 0 | BA58: 50 | BB58: 17815.96504 | BC58: -0.2967717764 | BD58: 31138.19996 | BE58: 0.1491778209 | DS58: 50 | DT58: 17815.96504 | DU58: -0.2967717764 | DV58: 31138.19996 | DW58: 0.1491778209 | DX58: 50 | DY58: -26719.11833 | DZ58: -26662.86533 | EA58: tx B | EB58: 56.2529991 | EG58: 19600 | EH58: 0.9826 | EI58: 0.0174 | EJ58: -6919.536117 | EK58: -14197.61929 | EL58: 0.9826
H59: 3.01 | I59: 38 | J59: =MMULT(J58:M58,J$4:M$7) -> 0.09826231748 | K59: 0.03147013865 | L59: 0.773494008 | M59: 0.0967735359 | N59: 0.9019427057 | O59: 5.452296563 | P59: 3.475072472 | Q59: 276.9636228 | R59: 0 | S59: 0.006048791418 | T59: 0.001544576924 | U59: -0.007964806428 | V59: 0 | AA59: 3.01 | AB59: 38 | AC59: =MMULT(AC58:AF58,AC$4:AF$7) -> 0.1528375407 | AD59: 0.05172005565 | AE59: 0.7047613648 | AF59: 0.09068103882 | AG59: 0.9019427057 | AH59: 127.7213803 | AI59: 46.06213403 | AJ59: 252.3526476 | AK59: 0 | AL59: 0.009408310618 | AM59: 0.00253845734 | AN59: -0.007257054083 | AO59: 0 | BA59: 51 | BB59: 16860.52137 | BC59: 0.7195691718 | BD59: 28698.65687 | BE59: 0.8230822048 | DS59: 51 | DT59: 16860.52137 | DU59: 0.7195691718 | DV59: 28698.65687 | DW59: 0.8230822048 | DX59: 51 | DY59: 4726.553779 | DZ59: -4006.190725 | EA59: tx A | EB59: 0 | EG59: 20000 | EH59: 0.9808 | EI59: 0.0192 | EJ59: -6718.558612 | EK59: -13862.42597 | EL59: 0.9808
H60: 3.02 | I60: 39 | J60: =MMULT(J59:M59,J$4:M$7) -> 0.09381385891 | K60: 0.03004544395 | L60: 0.7764536239 | M60: 0.09968707322 | N60: 0.9019427057 | O60: 5.205464247 | P60: 3.317751357 | Q60: 278.0233672 | R60: 0 | S60: 0.005774955031 | T60: 0.001474651889 | U60: -0.007995282124 | V60: 0 | AA60: 3.02 | AB60: 39 | AC60: =MMULT(AC59:AF59,AC$4:AF$7) -> 0.1472050184 | AD60: 0.04981401004 | AE60: 0.7095060901 | AF60: 0.09347488153 | AG60: 0.9019427057 | AH60: 123.0144639 | AI60: 44.36460051 | AJ60: 254.0515829 | AK60: 0 | AL60: 0.009061586116 | AM60: 0.002444907258 | AN60: -0.007305911369 | AO60: 0 | BA60: 52 | BB60: 17433.84337 | BC60: -0.04073159842 | BD60: 30843.92372 | BE60: 0.3904527189 | DS60: 52 | DT60: 17433.84337 | DU60: -0.04073159842 | DV60: 30843.92372 | DW60: 0.3904527189 | DX60: 52 | DY60: -18655.79133 | DZ60: -19130.34215 | EA60: tx A | EB60: 0 | EG60: 20400 | EH60: 0.9773 | EI60: 0.0227 | EJ60: -6517.581106 | EK60: -13527.23266 | EL60: 0.9773
H61: 3.03 | I61: 40 | J61: =MMULT(J60:M60,J$4:M$7) -> 0.08956678726 | K61: 0.02868524765 | L61: 0.7791465613 | M61: 0.1026014038 | N61: 0.9019427057 | O61: 4.969806319 | P61: 3.16755244 | Q61: 278.9876225 | R61: 0 | S61: 0.005513515537 | T61: 0.001407892481 | U61: -0.008023011783 | V61: 0 | AA61: 3.03 | AB61: 40 | AC61: =MMULT(AC60:AF60,AC$4:AF$7) -> 0.14178007 | AD61: 0.04797820988 | AE61: 0.7139686293 | AF61: 0.09627309083 | AG61: 0.9019427057 | AH61: 118.4810104 | AI61: 42.72962792 | AJ61: 255.6494764 | AK61: 0 | AL61: 0.008727639372 | AM61: 0.002354804872 | AN61: -0.007351862935 | AO61: 0 | BA61: 53 | BB61: 18580.39185 | BC61: 0.05447967933 | BD61: 30002.78215 | BE61: 0.4488731179 | DS61: 53 | DT61: 18580.39185 | DU61: 0.05447967933 | DV61: 30002.78215 | DW61: 0.4488731179 | DX61: 53 | DY61: -16946.00147 | DZ61: -16536.58861 | EA61: tx B | EB61: 409.412854 | EG61: 20800 | EH61: 0.9728 | EI61: 0.0272 | EJ61: -6316.603601 | EK61: -13192.03934 | EL61: 0.9728
H62: 3.04 | I62: 41 | J62: =MMULT(J61:M61,J$4:M$7) -> 0.08551198567 | K62: 0.02738662955 | L62: 0.7815853568 | M62: 0.105516028 | N62: 0.9019427057 | O62: 4.74481691 | P62: 3.024153262 | Q62: 279.8608777 | R62: 0 | S62: 0.005263911725 | T62: 0.001344155375 | U62: -0.008048124497 | V62: 0 | AA62: 3.04 | AB62: 41 | AC62: =MMULT(AC61:AF61,AC$4:AF$7) -> 0.1365550465 | AD62: 0.04621006567 | AE62: 0.718159757 | AF62: 0.09907513078 | AG62: 0.9019427057 | AH62: 114.1146276 | AI62: 41.15491006 | AJ62: 257.150186 | AK62: 0 | AL62: 0.008405999521 | AM62: 0.00226802309 | AN62: -0.007395019729 | AO62: 0 | BA62: 54 | BB62: 16112.56155 | BC62: 0.7438434406 | BD62: 32363.77018 | BE62: 1.318830398 | DS62: 54 | DT62: 16112.56155 | DU62: 0.7438434406 | DV62: 32363.77018 | DW62: 1.318830398 | DX62: 54 | DY62: 6202.741665 | DZ62: 7201.141765 | EA62: tx B | EB62: 998.4001002 | EG62: 21200 | EH62: 0.9677 | EI62: 0.0323 | EJ62: -6115.626095 | EK62: -12856.84602 | EL62: 0.9677
H63: 3.05 | I63: 42 | J63: =MMULT(J62:M62,J$4:M$7) -> 0.08164074993 | K63: 0.02614680177 | L63: 0.7837819777 | M63: 0.1084304706 | N63: 0.9019427057 | O63: 4.530013048 | P63: 2.887245972 | Q63: 280.6474178 | R63: 0 | S63: 0.005025607784 | T63: 0.001283303741 | U63: -0.008070743496 | V63: 0 | AA63: 3.05 | AB63: 42 | AC63: =MMULT(AC62:AF62,AC$4:AF$7) -> 0.1315225805 | AD63: 0.04450708366 | AE63: 0.7220898494 | AF63: 0.1018804865 | AG63: 0.9019427057 | AH63: 109.9091587 | AI63: 39.63822597 | AJ63: 258.5574272 | AK63: 0 | AL63: 0.008096213039 | AM63: 0.002184439514 | AN63: -0.007435488594 | AO63: 0 | BA63: 55 | BB63: 15724.65124 | BC63: 0.4566099531 | BD63: 29522.1862 | BE63: 0.6688559045 | DS63: 55 | DT63: 15724.65124 | DU63: 0.4566099531 | DV63: 29522.1862 | DW63: 0.6688559045 | DX63: 55 | DY63: -2026.352643 | DZ63: -9456.509069 | EA63: tx A | EB63: 0 | EG63: 21600 | EH63: 0.9616 | EI63: 0.0384 | EJ63: -5914.64859 | EK63: -12521.65271 | EL63: 0.9616
H64: 3.06 | I64: 43 | J64: =MMULT(J63:M63,J$4:M$7) -> 0.07794476985 | K64: 0.0249631027 | L64: 0.785747848 | M64: 0.1113442795 | N64: 0.9019427057 | O64: 4.324933623 | P64: 2.756536665 | Q64: 281.3513335 | R64: 0 | S64: 0.004798092159 | T64: 0.001225206943 | U64: -0.008090986415 | V64: 0 | AA64: 3.06 | AB64: 43 | AC64: =MMULT(AC63:AF63,AC$4:AF$7) -> 0.1266755756 | AD64: 0.04286686213 | AE64: 0.7257688988 | AF64: 0.1046886634 | AG64: 0.9019427057 | AH64: 105.8586739 | AI64: 38.17743667 | AJ64: 259.8747779 | AK64: 0 | AL64: 0.007797843105 | AM64: 0.002103936267 | AN64: -0.007473372426 | AO64: 0 | BA64: 56 | BB64: 14734.71963 | BC64: 0.6221181531 | BD64: 28289.55116 | BE64: 0.8866430077 | DS64: 56 | DT64: 14734.71963 | DU64: 0.6221181531 | DV64: 28289.55116 | DW64: 0.8866430077 | DX64: 56 | DY64: 3928.824963 | DZ64: -1690.260928 | EA64: tx A | EB64: 0 | EG64: 22000 | EH64: 0.9571 | EI64: 0.0429 | EJ64: -5713.671084 | EK64: -12186.45939 | EL64: 0.9571
H65: 3.07 | I65: 44 | J65: =MMULT(J64:M64,J$4:M$7) -> 0.07441611141 | K65: 0.02383299128 | L65: 0.7874938729 | M65: 0.1142570244 | N65: 0.9019427057 | O65: 4.129138401 | P65: 2.631744742 | Q65: 281.9765295 | R65: 0 | S65: 0.004580876451 | T65: 0.001169740266 | U65: -0.008108965547 | V65: 0 | AA65: 3.07 | AB65: 44 | AC65: =MMULT(AC64:AF64,AC$4:AF$7) -> 0.1220071974 | AD65: 0.041287088 | AE65: 0.7292065281 | AF65: 0.1074991864 | AG65: 0.9019427057 | AH65: 101.9574614 | AI65: 36.77048212 | AJ65: 261.1056837 | AK65: 0 | AL65: 0.007510468994 | AM65: 0.002026399823 | AN65: -0.007508770311 | AO65: 0 | BA65: 57 | BB65: 16148.9929 | BC65: 0.09400976878 | BD65: 31155.12059 | BE65: 0.4302429844 | DS65: 57 | DT65: 16148.9929 | DU65: 0.09400976878 | DV65: 31155.12059 | DW65: 0.4302429844 | DX65: 57 | DY65: -13328.69984 | DZ65: -18247.83106 | EA65: tx A | EB65: 0 | EG65: 22400 | EH65: 0.9516 | EI65: 0.0484 | EJ65: -5512.693579 | EK65: -11851.26607 | EL65: 0.9516
H66: 3.08 | I66: 45 | J66: =MMULT(J65:M65,J$4:M$7) -> 0.07104719978 | K66: 0.02275404148 | L66: 0.7890304624 | M66: 0.1171682964 | N66: =N54/(1+disc) -> 0.9019427057 | O66: 3.942207075 | P66: 2.512602314 | Q66: 282.5267334 | R66: 0 | S66: 0.004373494371 | T66: 0.001116784638 | U66: -0.008124788083 | V66: 0 | AA66: 3.08 | AB66: 45 | AC66: =MMULT(AC65:AF65,AC$4:AF$7) -> 0.1175108629 | AD66: 0.03976553351 | AE66: 0.7324120042 | AF66: 0.1103115993 | AG66: =AG54/(1+disc) -> 0.9019427057 | AH66: 98.20002041 | AI66: 35.41537826 | AJ66: 262.2534628 | AK66: 0 | AL66: 0.007233685482 | AM66: 0.00195172084 | AN66: -0.007541777672 | AO66: 0 | BA66: 58 | BB66: 18116.69573 | BC66: 1.36731981 | BD66: 29565.54183 | BE66: 1.411725577 | DS66: 58 | DT66: 18116.69573 | DU66: 1.36731981 | DV66: 29565.54183 | DW66: 1.411725577 | DX66: 58 | DY66: 22902.89858 | DZ66: 12786.22548 | EA66: tx A | EB66: 0 | EG66: 22800 | EH66: 0.9471 | EI66: 0.0529 | EJ66: -5311.716074 | EK66: -11516.07276 | EL66: 0.9471
H67: 3.09 | I67: 46 | J67: =MMULT(J66:M66,J$4:M$7) -> 0.06783080303 | K67: 0.02172393714 | L67: 0.7903675533 | M67: 0.1200777065 | N67: 0.9019427057 | O67: 3.763738366 | P67: 2.398853618 | Q67: 283.0055031 | R67: 0 | S67: 0.00417550074 | T67: 0.00106622638 | U67: -0.008138556348 | V67: 0 | AA67: 3.09 | AB67: 46 | AC67: =MMULT(AC66:AF66,AC$4:AF$7) -> 0.1131802319 | AD67: 0.03830005301 | AE67: 0.7353942511 | AF67: 0.1131254639 | AG67: 0.9019427057 | AH67: 94.5810524 | AI67: 34.11021418 | AJ67: 263.3213107 | AK67: 0 | AL67: 0.006967102274 | AM67: 0.001879794008 | AN67: -0.007572486403 | AO67: 0 | BA67: 59 | BB67: 17916.65871 | BC67: 0.5513472405 | BD67: 31625.50495 | BE67: 0.9472863614 | DS67: 59 | DT67: 17916.65871 | DU67: 0.5513472405 | DV67: 31625.50495 | DW67: 0.9472863614 | DX67: 59 | DY67: -1376.241494 | DZ67: -3206.914109 | EA67: tx A | EB67: 0 | EG67: 23200 | EH67: 0.9424 | EI67: 0.0576 | EJ67: -5110.738568 | EK67: -11180.87944 | EL67: 0.9424
H68: 3.10 | I68: 47 | J68: =MMULT(J67:M67,J$4:M$7) -> 0.06476001663 | K68: 0.02074046695 | L68: 0.7915146313 | M68: 0.1229848851 | N68: 0.9019427057 | O68: 3.593349161 | P68: 2.290254471 | Q68: 283.4162353 | R68: 0 | S68: 0.00398647053 | T68: 0.001017956959 | U68: -0.008150368016 | V68: 0 | AA68: 3.10 | AB68: 47 | AC68: =MMULT(AC67:AF67,AC$4:AF$7) -> 0.1090091977 | AD68: 0.03688857997 | AE68: 0.7381618628 | AF68: 0.1159403595 | AG68: 0.9019427057 | AH68: 91.09545427 | AI68: 32.8531494 | AJ68: 264.3123044 | AK68: 0 | AL68: 0.006710343462 | AM68: 0.001810517901 | AN68: -0.007600984997 | AO68: 0 | BA68: 60 | BB68: 15518.149 | BC68: 0.4153792615 | BD68: 29807.45277 | BE68: 0.6651404828 | DS68: 60 | DT68: 15518.149 | DU68: 0.4153792615 | DV68: 29807.45277 | DW68: 0.6651404828 | DX68: 60 | DY68: -3056.771158 | DZ68: -9853.238281 | EA68: tx A | EB68: 0 | EG68: 23600 | EH68: 0.9378 | EI68: 0.0622 | EJ68: -4909.761063 | EK68: -10845.68612 | EL68: 0.9378
H69: 3.11 | I69: 48 | J69: =MMULT(J68:M68,J$4:M$7) -> 0.06182824861 | K69: 0.01980151971 | L69: 0.7924807509 | M69: 0.1258894808 | N69: 0.9019427057 | O69: 3.430673691 | P69: 2.186571747 | Q69: 283.762172 | R69: 0 | S69: 0.003805997957 | T69: 0.0009718727565 | U69: -0.008160316323 | V69: 0 | AA69: 3.11 | AB69: 48 | AC69: =MMULT(AC68:AF68,AC$4:AF$7) -> 0.1049918787 | AD69: 0.03552912403 | AE69: 0.7407231151 | AF69: 0.1187558822 | AG69: 0.9019427057 | AH69: 87.73831096 | AI69: 31.6424113 | AJ69: 265.2294075 | AK69: 0 | AL69: 0.006463046988 | AM69: 0.001743794831 | AN69: -0.00762735867 | AO69: 0 | BA69: 61 | BB69: 16419.04595 | BC69: -0.5457248114 | BD69: 29487.39899 | BE69: -0.4019004537 | DS69: 61 | DT69: 16419.04595 | DU69: -0.5457248114 | DV69: 29487.39899 | DW69: -0.4019004537 | DX69: 61 | DY69: -32790.79029 | DZ69: -41544.4126 | EA69: tx A | EB69: 0 | EG69: 24000 | EH69: 0.9319 | EI69: 0.0681 | EJ69: -4708.783557 | EK69: -10510.49281 | EL69: 0.9319
H70: 4.00 | I70: 49 | J70: =MMULT(J69:M69,J$4:M$7) -> 0.05902920544 | K70: 0.0189050798 | L70: 0.7932745551 | M70: 0.1287911596 | N70: 0.8714422277 | O70: 3.164601686 | P70: 2.016988282 | Q70: 274.440974 | R70: 0 | S70: 0.003510817011 | T70: 0.0008964974344 | U70: -0.007892261128 | V70: 0 | AA70: 4.00 | AB70: 49 | AC70: =MMULT(AC69:AF69,AC$4:AF$7) -> 0.1011226101 | AD70: 0.03421976818 | AE70: 0.7430859776 | AF70: 0.1215716441 | AG70: 0.8714422277 | AH70: 81.6472353 | AI70: 29.44569332 | AJ70: 257.0777521 | AK70: 0 | AL70: 0.006014361485 | AM70: 0.001622734984 | AN70: -0.007392936705 | AO70: 0 | BA70: 62 | BB70: 17370.15552 | BC70: -0.1364876572 | BD70: 30997.46087 | BE70: 0.2885913803 | DS70: 62 | DT70: 17370.15552 | DU70: -0.1364876572 | DV70: 30997.46087 | DW70: 0.2885913803 | DX70: 62 | DY70: -21464.78523 | DZ70: -22339.71946 | EA70: tx A | EB70: 0 | EG70: 24400 | EH70: 0.9254 | EI70: 0.0746 | EJ70: -4507.806052 | EK70: -10175.29949 | EL70: 0.9254
H71: 4.01 | I71: 50 | J71: =MMULT(J70:M70,J$4:M$7) -> 0.0563568785 | K71: 0.01804922288 | L71: 0.7939042943 | M71: 0.1316896044 | N71: 0.8714422277 | O71: 3.021336157 | P71: 1.925676665 | Q71: 274.6588383 | R71: 0 | S71: 0.003351877876 | T71: 0.0008559118591 | U71: -0.007898526381 | V71: 0 | AA71: 4.01 | AB71: 50 | AC71: =MMULT(AC70:AF70,AC$4:AF$7) -> 0.0973959357 | AD71: 0.03295866607 | AE71: 0.745258125 | AF71: 0.1243872732 | AG71: 0.8714422277 | AH71: 78.63828745 | AI71: 28.36053033 | AJ71: 257.8292275 | AK71: 0 | AL71: 0.005792714053 | AM71: 0.001562932285 | AN71: -0.007414547325 | AO71: 0 | BA71: 63 | BB71: 15084.81308 | BC71: 1.115920051 | BD71: 28410.65952 | BE71: 1.012067265 | DS71: 63 | DT71: 15084.81308 | DU71: 1.115920051 | DV71: 28410.65952 | DW71: 1.012067265 | DX71: 63 | DY71: 18392.78845 | DZ71: 1951.358425 | EA71: tx A | EB71: 0 | EG71: 24800 | EH71: 0.9176 | EI71: 0.0824 | EJ71: -4306.828546 | EK71: -9840.106175 | EL71: 0.9176
H72: 4.02 | I72: 51 | J72: =MMULT(J71:M71,J$4:M$7) -> 0.05380553118 | K72: 0.01723211168 | L72: 0.7943778433 | M72: 0.1345845138 | N72: 0.8714422277 | O72: 2.88455644 | P72: 1.838498842 | Q72: 274.8226672 | R72: 0 | S72: 0.003200134116 | T72: 0.0008171636443 | U72: -0.007903237704 | V72: 0 | AA72: 4.02 | AB72: 51 | AC72: =MMULT(AC71:AF71,AC$4:AF$7) -> 0.09380660054 | AD72: 0.0317440394 | AE72: 0.7472469479 | AF72: 0.1272024121 | AG72: 0.8714422277 | AH72: 75.74022843 | AI72: 27.31535889 | AJ72: 258.5172799 | AK72: 0 | AL72: 0.005579234999 | AM72: 0.001505333497 | AN72: -0.007434334055 | AO72: 0 | BA72: 64 | BB72: 17976.25994 | BC72: 1.013156754 | BD72: 30932.61691 | BE72: 1.164042678 | DS72: 64 | DT72: 17976.25994 | DU72: 1.013156754 | DV72: 30932.61691 | DW72: 1.164042678 | DX72: 64 | DY72: 12418.44268 | DZ72: 3988.663431 | EA72: tx A | EB72: 0 | EG72: 25200 | EH72: 0.9096 | EI72: 0.0904 | EJ72: -4105.851041 | EK72: -9504.912859 | EL72: 0.9096
H73: 4.03 | I73: 52 | J73: =MMULT(J72:M72,J$4:M$7) -> 0.0513696866 | K73: 0.01645199214 | L73: 0.7947027194 | M73: 0.1374756018 | N73: 0.8714422277 | O73: 2.753968915 | P73: 1.755267669 | Q73: 274.9350612 | R73: 0 | S73: 0.003055259989 | T73: 0.0007801696103 | U73: -0.007906469885 | V73: 0 | AA73: 4.03 | AB73: 52 | AC73: =MMULT(AC72:AF72,AC$4:AF$7) -> 0.09034954325 | AD73: 0.03057417541 | AE73: 0.7490595632 | AF73: 0.1300167181 | AG73: 0.8714422277 | AH73: 72.94897166 | AI73: 26.30870519 | AJ73: 259.1443716 | AK73: 0 | AL73: 0.005373623294 | AM73: 0.001449857398 | AN73: -0.007452367701 | AO73: 0 | BA73: 65 | BB73: 17213.58143 | BC73: -0.1020647449 | BD73: 30665.05042 | BE73: 0.06446967532 | DS73: 65 | DT73: 17213.58143 | DU73: -0.1020647449 | DV73: 30665.05042 | DW73: 0.06446967532 | DX73: 65 | DY73: =lambda*DU73-DT73 -> -20275.52378 | DZ73: =lambda*DW73-DV73 -> -28730.96016 | EA73: =IF(DY73>DZ73, "tx A", IF(DZ73>DY73, "tx B", "either")) -> tx A | EB73: =IF(EA$2="tx A", MAX(0,DZ73-DY73), MAX(0, DY73-DZ73)) -> 0 | EG73: 25600 | EH73: 0.9034 | EI73: 0.0966 | EJ73: -3904.873535 | EK73: -9169.719542 | EL73: 0.9034
H74: 4.04 | I74: 53 | J74: =MMULT(J73:M73,J$4:M$7) -> 0.04904411578 | K74: 0.0157071896 | L74: 0.7948860978 | M74: 0.1403625969 | N74: 0.8714422277 | O74: 2.629293251 | P74: 1.675804477 | Q74: 274.9985027 | R74: 0 | S74: 0.002916944497 | T74: 0.0007448503432 | U74: -0.00790829431 | V74: 0 | AA74: 4.04 | AB74: 53 | AC74: =MMULT(AC73:AF73,AC$4:AF$7) -> 0.08701988899 | AD74: 0.02944742446 | AE74: 0.7507028242 | AF74: 0.1328298624 | AG74: 0.8714422277 | AH74: 70.26058115 | AI74: 25.33914973 | AJ74: 259.7128736 | AK74: 0 | AL74: 0.005175589004 | AM74: 0.001396425762 | AN74: -0.007468716448 | AO74: 0 | BA74: 66 | BB74: 16027.76378 | BC74: 0.4318790836 | BD74: 29153.91036 | BE74: 0.4677003065 | DS74: 66 | DT74: 16027.76378 | DU74: 0.4318790836 | DV74: 29153.91036 | DW74: 0.4677003065 | DX74: 66 | DY74: -3071.391272 | DZ74: -15122.90116 | EA74: tx A | EB74: 0 | EG74: 26000 | EH74: 0.8953 | EI74: 0.1047 | EJ74: -3703.89603 | EK74: -8834.526226 | EL74: =IF(EJ74>EK74,EH74,EI74) -> 0.8953
H75: 4.05 | I75: 54 | J75: =MMULT(J74:M74,J$4:M$7) -> 0.0468238265 | K75: 0.01499610522 | L75: 0.7949348271 | M75: 0.1432452412 | N75: 0.8714422277 | O75: 2.510261814 | P75: 1.599938684 | Q75: 275.0153611 | R75: 0 | S75: 0.002784890723 | T75: 0.0007111300241 | U75: -0.007908779116 | V75: 0 | AA75: 4.05 | AB75: 54 | AC75: =MMULT(AC74:AF74,AC$4:AF$7) -> 0.08381294256 | AD75: 0.02836219769 | AE75: 0.7521833304 | AF75: 0.1356415293 | AG75: 0.8714422277 | AH75: 67.67126597 | AI75: 24.40532533 | AJ75: 260.225069 | AK75: 0 | AL75: 0.004984852876 | AM75: 0.001344963244 | AN75: -0.007483445954 | AO75: 0 | BA75: =1+BA74 -> 67 | BB75: 16215.27408 | BC75: 0.2268637295 | BD75: 31367.17315 | BE75: 0.5843873639 | DS75: =1+DS74 -> 67 | DT75: 16215.27408 | DU75: 0.2268637295 | DV75: 31367.17315 | DW75: 0.5843873639 | DX75: 67 | DY75: -9409.362192 | DZ75: -13835.55223 | EA75: tx A | EB75: 0 | EG75: =EG74+400 -> 26400 | EH75: 0.8892 | EI75: 0.1108 | EJ75: -3502.918525 | EK75: -8499.332909 | EL75: 0.8892
H76: 4.06 | I76: 55 | J76: =MMULT(J75:M75,J$4:M$7) -> 0.04470405253 | K76: 0.01431721253 | L76: 0.7948554446 | M76: 0.1461232904 | N76: 0.8714422277 | O76: 2.39661908 | P76: 1.527507432 | Q76: 274.9878979 | R76: 0 | S76: 0.00265881519 | T76: 0.0006789362666 | U76: -0.007907989342 | V76: 0 | AA76: 4.06 | AB76: 55 | AC76: =MMULT(AC75:AF75,AC$4:AF$7) -> 0.08072418183 | AD76: 0.02731696482 | AE76: 0.7535074371 | AF76: 0.1384514163 | AG76: 0.8714422277 | AH76: 65.1773749 | AI76: 23.50591518 | AJ76: 260.6831564 | AK76: 0 | AL76: 0.004801145952 | AM76: 0.001295397276 | AN76: -0.007496619445 | AO76: 0 | BA76: 68 | BB76: 18133.62356 | BC76: 0.06405995734 | BD76: 30678.94002 | BE76: 0.507250972 | DS76: 68 | DT76: 18133.62356 | DU76: 0.06405995734 | DV76: 30678.94002 | DW76: 0.507250972 | DX76: 68 | DY76: -16211.82484 | DZ76: -15461.41086 | EA76: tx B | EB76: 750.413975 | EG76: 26800 | EH76: 0.8808 | EI76: 0.1192 | EJ76: -3301.941019 | EK76: -8164.139593 | EL76: 0.8808
H77: 4.07 | I77: 56 | J77: =MMULT(J76:M76,J$4:M$7) -> 0.04268024341 | K77: 0.01366905417 | L77: 0.79465419 | M77: 0.1489965124 | N77: 0.8714422277 | O77: 2.288121097 | P77: 1.458355234 | Q77: 274.918272 | R77: 0 | S77: 0.002538447257 | T77: 0.0006481999613 | U77: -0.007905987067 | V77: 0 | AA77: 4.07 | AB77: 56 | AC77: =MMULT(AC76:AF76,AC$4:AF$7) -> 0.07774925128 | AD77: 0.02631025194 | AE77: 0.7546812637 | AF77: 0.1412592331 | AG77: 0.8714422277 | AH77: 62.77539126 | AI77: 22.63965102 | AJ77: 261.0892531 | AK77: 0 | AL77: 0.004624209185 | AM77: 0.001247657963 | AN77: -0.007508297805 | AO77: 0 | BA77: 69 | BB77: 17289.72476 | BC77: 0.7353097505 | BD77: 31199.53499 | BE77: 1.028655665 | DS77: 69 | DT77: 17289.72476 | DU77: 0.7353097505 | DV77: 31199.53499 | DW77: 1.028655665 | DX77: 69 | DY77: 4769.567753 | DZ77: -339.8650523 | EA77: tx A | EB77: 0 | EG77: 27200 | EH77: 0.873 | EI77: 0.127 | EJ77: -3100.963514 | EK77: -7828.946276 | EL77: 0.873
H78: 4.08 | I78: 57 | J78: =MMULT(J77:M77,J$4:M$7) -> 0.0407480547 | K78: 0.01305023877 | L78: 0.794337019 | M78: 0.1518646876 | N78: 0.8714422277 | O78: 2.184534955 | P78: 1.392333645 | Q78: 274.8085436 | R78: 0 | S78: 0.002423528532 | T78: 0.0006188551275 | U78: -0.007902831544 | V78: 0 | AA78: 4.08 | AB78: 57 | AC78: =MMULT(AC77:AF77,AC$4:AF$7) -> 0.07488395592 | AD78: 0.02534063948 | AE78: 0.7557107031 | AF78: 0.1440647015 | AG78: 0.8714422277 | AH78: 60.46192799 | AI78: 21.80531133 | AJ78: 261.4453976 | AK78: 0 | AL78: 0.004453793073 | AM78: 0.001201677989 | AN78: -0.007518539663 | AO78: 0 | BA78: 70 | BB78: 17648.60222 | BC78: 0.5572706406 | BD78: 31131.64455 | BE78: 0.8560045988 | DS78: 70 | DT78: 17648.60222 | DU78: 0.5572706406 | DV78: 31131.64455 | DW78: 0.8560045988 | DX78: 70 | DY78: -930.4829977 | DZ78: -5451.506582 | EA78: tx A | EB78: 0 | EG78: 27600 | EH78: 0.8626 | EI78: 0.1374 | EJ78: -2899.986008 | EK78: -7493.75296 | EL78: 0.8626
H79: 4.09 | I79: 58 | J79: =MMULT(J78:M78,J$4:M$7) -> 0.03890333862 | K79: 0.01245943792 | L79: 0.7939096161 | M79: 0.1547276074 | N79: 0.8714422277 | O79: 2.085638289 | P79: 1.329300936 | Q79: 274.6606795 | R79: 0 | S79: 0.002313812324 | T79: 0.0005908387716 | U79: -0.007898579327 | V79: 0 | AA79: 4.09 | AB79: 58 | AC79: =MMULT(AC78:AF78,AC$4:AF$7) -> 0.07212425538 | AD79: 0.02440676018 | AE79: 0.7566014299 | AF79: 0.1468675545 | AG79: 0.8714422277 | AH79: 58.23372286 | AI79: 21.00171957 | AJ79: 261.7535531 | AK79: 0 | AL79: 0.004289657312 | AM79: 0.001157392516 | AN79: -0.007527401473 | AO79: 0 | BA79: 71 | BB79: 16167.7633 | BC79: 0.9027371093 | BD79: 30624.06986 | BE79: 1.015444864 | DS79: 71 | DT79: 16167.7633 | DU79: 0.9027371093 | DV79: 30624.06986 | DW79: 1.015444864 | DX79: 71 | DY79: 10914.34998 | DZ79: -160.7239399 | EA79: tx A | EB79: 0 | EG79: 28000 | EH79: 0.853 | EI79: 0.147 | EJ79: -2699.008503 | EK79: -7158.559644 | EL79: 0.853
H80: 4.10 | I80: 59 | J80: =MMULT(J79:M79,J$4:M$7) -> 0.03714213517 | K80: 0.01189538337 | L80: 0.793377407 | M80: 0.1575850744 | N80: 0.8714422277 | O80: 1.9912188 | P80: 1.269121798 | Q80: 274.4765566 | R80: 0 | S80: 0.002209063107 | T80: 0.0005640907515 | U80: -0.007893284398 | V80: 0 | AA80: 4.10 | AB80: 59 | AC80: =MMULT(AC79:AF79,AC$4:AF$7) -> 0.06946625816 | AD80: 0.02350729715 | AE80: 0.7573589081 | AF80: 0.1496675366 | AG80: 0.8714422277 | AH80: 56.08763382 | AI80: 20.22774261 | AJ80: 262.0156099 | AK80: 0 | AL80: 0.00413157045 | AM80: 0.001114739097 | AN80: -0.007534937597 | AO80: 0 | BA80: 72 | BB80: 17154.56067 | BC80: 0.9047609355 | BD80: 32364.15957 | BE80: 1.253961046 | DS80: 72 | DT80: 17154.56067 | DU80: 0.9047609355 | DV80: 32364.15957 | DW80: 1.253961046 | DX80: 72 | DY80: 9988.267401 | DZ80: 5254.67181 | EA80: tx A | EB80: 0 | EG80: 28400 | EH80: 0.8425 | EI80: 0.1575 | EJ80: -2498.030997 | EK80: -6823.366327 | EL80: 0.8425
H81: 4.11 | I81: 60 | J81: =MMULT(J80:M80,J$4:M$7) -> 0.03546066364 | K81: 0.01135686429 | L81: 0.7927455702 | M81: 0.1604369018 | N81: 0.8714422277 | O81: 1.901073801 | P81: 1.211667046 | Q81: 274.2579666 | R81: 0 | S81: 0.002109056021 | T81: 0.0005385536483 | U81: -0.007886998275 | V81: 0 | AA81: 4.11 | AB81: 60 | AC81: =MMULT(AC80:AF80,AC$4:AF$7) -> 0.06690621619 | AD81: 0.02264098207 | AE81: 0.7579883991 | AF81: 0.1524644026 | AG81: 0.8714422277 | AH81: 54.02063467 | AI81: 19.48228904 | AJ81: 262.2333884 | AK81: 0 | AL81: 0.003979309567 | AM81: 0.001073657586 | AN81: -0.007541200381 | AO81: 0 | BA81: 73 | BB81: 16173.62811 | BC81: 0.4501759933 | BD81: 32037.27597 | BE81: 0.7417868466 | DS81: 73 | DT81: 16173.62811 | DU81: 0.4501759933 | DV81: 32037.27597 | DW81: 0.7417868466 | DX81: 73 | DY81: -2668.348316 | DZ81: -9783.670574 | EA81: tx A | EB81: 0 | EG81: 28800 | EH81: 0.8326 | EI81: 0.1674 | EJ81: -2297.053492 | EK81: -6488.173011 | EL81: 0.8326
H82: =TEXT((I82-MOD(I82,12))/12,"0")&"."&TEXT(MOD(I82,12), "00") -> 5.01 | I82: 61 | J82: =MMULT(J81:M81,J$4:M$7) -> 0.03385531446 | K82: 0.01084272465 | L82: 0.7920190483 | M82: 0.1632829126 | N82: 0.8419731669 | O82: 1.753632638 | P82: 1.117694051 | Q82: 264.740695 | R82: 0 | S82: 0.001945484427 | T82: 0.0004967851614 | U82: -0.007613304477 | V82: 0 | AA82: =TEXT((AB82-MOD(AB82,12))/12,"0")&"."&TEXT(MOD(AB82,12), "00") -> 5.01 | AB82: 61 | AC82: =MMULT(AC81:AF81,AC$4:AF$7) -> 0.06444051951 | AD82: 0.02180659332 | AE82: 0.7584949695 | AF82: 0.1552579177 | AG82: 0.8419731669 | AH82: 50.2703485 | AI82: 18.12976588 | AJ82: 253.5349191 | AK82: 0 | AL82: 0.003703053101 | AM82: 0.0009991208234 | AN82: -0.007291053364 | AO82: 0 | BA82: 74 | BB82: 16904.74027 | BC82: 1.209256845 | BD82: 29222.8395 | BE82: 1.333242441 | DS82: 74 | DT82: 16904.74027 | DU82: 1.209256845 | DV82: 29222.8395 | DW82: 1.333242441 | DX82: 74 | DY82: 19372.96508 | DZ82: 10774.43374 | EA82: tx A | EB82: 0 | EG82: 29200 | EH82: 0.8217 | EI82: 0.1783 | EJ82: -2096.075987 | EK82: -6152.979694 | EL82: 0.8217
O83: SILENT | P83: ACTIVE | Q83: COMPL | R83: DEAD | S83: SILENT | T83: ACTIVE | U83: COMPL | V83: DEAD | AH83: SILENT | AI83: ACTIVE | AJ83: COMPL | AK83: DEAD | AL83: SILENT | AM83: ACTIVE | AN83: COMPL | AO83: DEAD | BA83: 75 | BB83: 16869.16288 | BC83: 1.578128592 | BD83: 29843.6282 | BE83: 1.675856437 | DS83: 75 | DT83: 16869.16288 | DU83: 1.578128592 | DV83: 29843.6282 | DW83: 1.675856437 | DX83: 75 | DY83: 30474.69488 | DZ83: 20432.06492 | EA83: tx A | EB83: 0 | EG83: 29600 | EH83: 0.8092 | EI83: 0.1908 | EJ83: -1895.098481 | EK83: -5817.786378 | EL83: 0.8092
F84: NO CORRECTION | H84: TOTALS | J84: =SUM(J22:J81) -> 9.944760952 | K84: =SUM(K22:K81) -> 5.67405376 | L84: 39.80295923 | M84: 4.578226062 | O84: =SUM(O22:O81) -> 588.5106046 | P84: 679.8078878 | Q84: 14613.00911 | R84: 0 | S84: 0.652895134 | T84: 0.3021564542 | U84: -0.4202349308 | V84: 0 | AA84: TOTALS | AC84: =SUM(AC22:AC81) -> 13.28713023 | AD84: =SUM(AD22:AD81) -> 7.111256912 | AE84: 35.29915253 | AF84: 4.30246033 | AH84: =SUM(AH22:AH81) -> 11778.96735 | AI84: 6829.797522 | AJ84: 12921.8036 | AK84: 0 | AL84: 0.8676713585 | AM84: 0.3763861579 | AN84: -0.3715999355 | AO84: 0 | BA84: 76 | BB84: 17001.31029 | BC84: 0.7522982767 | BD84: 29513.04581 | BE84: 1.089102226 | DS84: 76 | DT84: 17001.31029 | DU84: 0.7522982767 | DV84: 29513.04581 | DW84: 1.089102226 | DX84: 76 | DY84: 5567.638012 | DZ84: 3160.020968 | EA84: tx A | EB84: 0 | EG84: 30000 | EH84: 0.7993 | EI84: 0.2007 | EJ84: -1694.120976 | EK84: -5482.593062 | EL84: 0.7993
BA85: 77 | BB85: 16266.95176 | BC85: -0.286368812 | BD85: 30682.66309 | BE85: 0.01089450118 | DS85: 77 | DT85: 16266.95176 | DU85: -0.286368812 | DV85: 30682.66309 | DW85: 0.01089450118 | DX85: 77 | DY85: -24858.01612 | DZ85: -30355.82806 | EA85: tx A | EB85: 0 | EG85: 30400 | EH85: 0.7885 | EI85: 0.2115 | EJ85: -1493.14347 | EK85: -5147.399745 | EL85: 0.7885
Q86: TOTAL COST | R86: =O84+P84+Q84+R84 -> 15881.3276 | U86: TOTAL OUTCOME | V86: =S84+T84+U84+V84 -> 0.5348166573 | AJ86: TOTAL COST | AK86: =AH84+AI84+AJ84+AK84 -> 31530.56847 | AN86: TOTAL OUTCOME | AO86: =AL84+AM84+AN84+AO84 -> 0.8724575809 | BA86: 78 | BB86: 15929.60381 | BC86: 0.3379359252 | BD86: 29463.50285 | BE86: 0.6957080132 | DS86: 78 | DT86: 15929.60381 | DU86: 0.3379359252 | DV86: 29463.50285 | DW86: 0.6957080132 | DX86: 78 | DY86: -5791.526049 | DZ86: -8592.262453 | EA86: tx A | EB86: 0 | EG86: 30800 | EH86: 0.7784 | EI86: 0.2216 | EJ86: -1292.165965 | EK86: -4812.206429 | EL86: 0.7784
BA87: 79 | BB87: 17587.87554 | BC87: 0.7699851041 | BD87: 30266.99452 | BE87: 1.022256524 | DS87: 79 | DT87: 17587.87554 | DU87: 0.7699851041 | DV87: 30266.99452 | DW87: 1.022256524 | DX87: 79 | DY87: 5511.677585 | DZ87: 400.7012031 | EA87: tx A | EB87: 0 | EG87: 31200 | EH87: 0.769 | EI87: 0.231 | EJ87: -1091.188459 | EK87: -4477.013112 | EL87: 0.769
BA88: 80 | BB88: 15161.79817 | BC88: 0.4125089515 | BD88: 31851.30445 | BE88: 0.8415352194 | DS88: 80 | DT88: 15161.79817 | DU88: 0.4125089515 | DV88: 31851.30445 | DW88: 0.8415352194 | DX88: 80 | DY88: -2786.529621 | DZ88: -6605.24787 | EA88: tx A | EB88: 0 | EG88: 31600 | EH88: 0.7587 | EI88: 0.2413 | EJ88: -890.2109539 | EK88: -4141.819796 | EL88: 0.7587
O89: SILENT | P89: ACTIVE | Q89: COMPL | R89: DEAD | S89: SILENT | T89: ACTIVE | U89: COMPL | V89: DEAD | AH89: SILENT | AI89: ACTIVE | AJ89: COMPL | AK89: DEAD | AL89: SILENT | AM89: ACTIVE | AN89: COMPL | AO89: DEAD | BA89: 81 | BB89: 15655.16793 | BC89: 0.7049595062 | BD89: 28156.48702 | BE89: 0.9103729531 | DS89: 81 | DT89: 15655.16793 | DU89: 0.7049595062 | DV89: 28156.48702 | DW89: 0.9103729531 | DX89: 81 | DY89: 5493.617255 | DZ89: -845.2984238 | EA89: tx A | EB89: 0 | EG89: 32000 | EH89: 0.7498 | EI89: 0.2502 | EJ89: -689.2334485 | EK89: -3806.626479 | EL89: 0.7498
F90: HALF CYCLE CORRECTION | H90: TOTALS | J90: =0.5*J22+SUM(J23:J81)+0.5*J82 -> 9.961688609 | K90: =0.5*K22+SUM(K23:K81)+0.5*K82 -> 5.179475123 | L90: 40.19896875 | M90: 4.659867518 | O90: 589.387421 | P90: 619.151959 | Q90: 14745.37945 | R90: 0 | S90: =0.5*S22+SUM(S23:S81)+0.5*S82 -> 0.6538678762 | T90: =0.5*T22+SUM(T23:T81)+0.5*T82 -> 0.2751965134 | U90: =0.5*U22+SUM(U23:U81)+0.5*U82 -> -0.4240415831 | V90: =0.5*V22+SUM(V23:V81)+0.5*V82 -> 0 | AA90: TOTALS | AC90: =0.5*AC22+SUM(AC23:AC81)+0.5*AC82 -> 13.31935049 | AD90: =0.5*AD22+SUM(AD23:AD81)+0.5*AD82 -> 6.622160208 | AE90: 35.67840001 | AF90: 4.380089289 | AH90: 11804.10253 | AI90: 6345.147629 | AJ90: 13048.57106 | AK90: 0 | AL90: =0.5*AL22+SUM(AL23:AL81)+0.5*AL82 -> 0.8695228851 | AM90: =0.5*AM22+SUM(AM23:AM81)+0.5*AM82 -> 0.349677385 | AN90: -0.3752454622 | AO90: 0 | BA90: 82 | BB90: 17765.25419 | BC90: 0.5398552629 | BD90: 28780.57258 | BE90: 0.8646540326 | DS90: 82 | DT90: 17765.25419 | DU90: 0.5398552629 | DV90: 28780.57258 | DW90: 0.8646540326 | DX90: 82 | DY90: -1569.596299 | DZ90: -2840.951605 | EA90: tx A | EB90: 0 | EG90: 32400 | EH90: 0.7395 | EI90: 0.2605 | EJ90: -488.2559431 | EK90: -3471.433163 | EL90: 0.7395
BA91: 83 | BB91: 16528.51242 | BC91: 0.4017377565 | BD91: 30560.80666 | BE91: 0.752872323 | DS91: 83 | DT91: 16528.51242 | DU91: 0.4017377565 | DV91: 30560.80666 | DW91: 0.752872323 | DX91: 83 | DY91: -4476.379728 | DZ91: -7974.636975 | EA91: tx A | EB91: 0 | EG91: 32800 | EH91: 0.7281 | EI91: 0.2719 | EJ91: -287.2784376 | EK91: -3136.239847 | EL91: 0.7281
Q92: TOTAL COST | R92: =O90+P90+Q90+R90 -> 15953.91883 | U92: TOTAL OUTCOME | V92: =S90+T90+U90+V90 -> 0.5050228065 | AJ92: TOTAL COST | AK92: =AH90+AI90+AJ90+AK90 -> 31197.82121 | AN92: TOTAL OUTCOME | AO92: =AL90+AM90+AN90+AO90 -> 0.8439548079 | BA92: 84 | BB92: 18575.57276 | BC92: 0.2938765286 | BD92: 33716.14599 | BE92: 1.176063086 | DS92: 84 | DT92: 18575.57276 | DU92: 0.2938765286 | DV92: 33716.14599 | DW92: 1.176063086 | DX92: 84 | DY92: -9759.276906 | DZ92: 1565.746589 | EA92: tx B | EB92: 11325.0235 | EG92: 33200 | EH92: 0.7173 | EI92: 0.2827 | EJ92: -86.30093218 | EK92: -2801.04653 | EL92: 0.7173
BA93: 85 | BB93: 15582.79741 | BC93: 0.7251924535 | BD93: 30956.22769 | BE93: 1.02063597 | DS93: 85 | DT93: 15582.79741 | DU93: 0.7251924535 | DV93: 30956.22769 | DW93: 1.02063597 | DX93: 85 | DY93: 6172.976198 | DZ93: -337.148592 | EA93: tx A | EB93: 0 | EG93: 33600 | EH93: 0.7056 | EI93: 0.2944 | EJ93: 114.6765733 | EK93: -2465.853214 | EL93: 0.7056
BA94: 86 | BB94: 17227.01293 | BC94: 0.8689953543 | BD94: 31148.52354 | BE94: 1.216914902 | DS94: 86 | DT94: 17227.01293 | DU94: 0.8689953543 | DV94: 31148.52354 | DW94: 1.216914902 | DX94: 86 | DY94: 8842.847701 | DZ94: 5358.923525 | EA94: tx A | EB94: 0 | EG94: 34000 | EH94: 0.6957 | EI94: 0.3043 | EJ94: 315.6540787 | EK94: -2130.659897 | EL94: 0.6957
BA95: 87 | BB95: 15388.01855 | BC95: 0.9037809614 | BD95: 30800.7407 | BE95: 1.208614061 | DS95: 87 | DT95: 15388.01855 | DU95: 0.9037809614 | DV95: 30800.7407 | DW95: 1.208614061 | DX95: 87 | DY95: 11725.4103 | DZ95: 5457.681132 | EA95: tx A | EB95: 0 | EG95: 34400 | EH95: 0.6852 | EI95: 0.3148 | EJ95: 516.6315841 | EK95: -1795.466581 | EL95: 0.6852
BA96: 88 | BB96: 15631.17474 | BC96: 0.1703604063 | BD96: 27723.13758 | BE96: 0.3748219637 | DS96: 88 | DT96: 15631.17474 | DU96: 0.1703604063 | DV96: 27723.13758 | DW96: 0.3748219637 | DX96: 88 | DY96: -10520.36255 | DZ96: -16478.47867 | EA96: tx A | EB96: 0 | EG96: 34800 | EH96: 0.6734 | EI96: 0.3266 | EJ96: 717.6090896 | EK96: -1460.273264 | EL96: 0.6734
BA97: 89 | BB97: 16573.67587 | BC97: -0.2930561225 | BD97: 31456.33447 | BE97: 0.4218346554 | DS97: 89 | DT97: 16573.67587 | DU97: -0.2930561225 | DV97: 31456.33447 | DW97: 0.4218346554 | DX97: 89 | DY97: -25365.35955 | DZ97: -18801.2948 | EA97: tx B | EB97: 6564.064745 | EG97: 35200 | EH97: 0.6648 | EI97: 0.3352 | EJ97: 918.586595 | EK97: -1125.079948 | EL97: 0.6648
BA98: 90 | BB98: 17780.8348 | BC98: -0.4560424397 | BD98: 29663.90577 | BE98: 0.05223750436 | DS98: 90 | DT98: 17780.8348 | DU98: -0.4560424397 | DV98: 29663.90577 | DW98: 0.05223750436 | DX98: 90 | DY98: -31462.10799 | DZ98: -28096.78064 | EA98: tx B | EB98: 3365.327347 | EG98: 35600 | EH98: 0.6544 | EI98: 0.3456 | EJ98: 1119.5641 | EK98: -789.8866316 | EL98: 0.6544
BA99: 91 | BB99: 16241.7772 | BC99: 0.3976550499 | BD99: 32341.75872 | BE99: 0.9386476632 | DS99: 91 | DT99: 16241.7772 | DU99: 0.3976550499 | DV99: 32341.75872 | DW99: 0.9386476632 | DX99: 91 | DY99: -4312.125704 | DZ99: -4182.328827 | EA99: tx B | EB99: 129.796877 | EG99: 36000 | EH99: 0.6465 | EI99: 0.3535 | EJ99: 1320.541606 | EK99: -454.6933152 | EL99: 0.6465
BA100: 92 | BB100: 17970.88421 | BC100: 0.2989614599 | BD100: 30975.03769 | BE100: 0.7592445855 | DS100: 92 | DT100: 17970.88421 | DU100: 0.2989614599 | DV100: 30975.03769 | DW100: 0.7592445855 | DX100: 92 | DY100: -9002.040414 | DZ100: -8197.700122 | EA100: tx B | EB100: 804.340292 | EG100: 36400 | EH100: 0.6354 | EI100: 0.3646 | EJ100: 1521.519111 | EK100: -119.4999988 | EL100: 0.6354
BA101: 93 | BB101: 16131.0595 | BC101: -0.05168399333 | BD101: 31178.96569 | BE101: 0.5152307569 | DS101: 93 | DT101: 16131.0595 | DU101: -0.05168399333 | DV101: 31178.96569 | DW101: 0.5152307569 | DX101: 93 | DY101: -17681.5793 | DZ101: -15722.04298 | EA101: tx B | EB101: 1959.536318 | EG101: 36800 | EH101: 0.6246 | EI101: 0.3754 | EJ101: 1722.496617 | EK101: 215.6933177 | EL101: 0.6246
BA102: 94 | BB102: 16983.55947 | BC102: 0.918353052 | BD102: 29359.98891 | BE102: 1.017860543 | DS102: 94 | DT102: 16983.55947 | DU102: 0.918353052 | DV102: 29359.98891 | DW102: 1.017860543 | DX102: 94 | DY102: 10567.03209 | DZ102: 1175.827382 | EA102: tx A | EB102: 0 | EG102: 37200 | EH102: 0.6146 | EI102: 0.3854 | EJ102: 1923.474122 | EK102: 550.8866341 | EL102: 0.6146
BA103: 95 | BB103: 17732.30899 | BC103: 1.265041775 | BD103: 33918.14012 | BE103: 1.867246941 | DS103: 95 | DT103: 17732.30899 | DU103: 1.265041775 | DV103: 33918.14012 | DW103: 1.867246941 | DX103: 95 | DY103: 20218.94425 | DZ103: 22099.26811 | EA103: tx B | EB103: 1880.323863 | EG103: 37600 | EH103: 0.6051 | EI103: 0.3949 | EJ103: 2124.451628 | EK103: 886.0799505 | EL103: 0.6051
BA104: 96 | BB104: 17332.76031 | BC104: 0.8752476179 | BD104: 30183.83416 | BE104: 1.248802853 | DS104: 96 | DT104: 17332.76031 | DU104: 0.8752476179 | DV104: 30183.83416 | DW104: 1.248802853 | DX104: 96 | DY104: 8924.668226 | DZ104: 7280.251421 | EA104: tx A | EB104: 0 | EG104: 38000 | EH104: 0.5964 | EI104: 0.4036 | EJ104: 2325.429133 | EK104: 1221.273267 | EL104: 0.5964
BA105: 97 | BB105: 17252.33631 | BC105: -0.2901746928 | BD105: 31144.59895 | BE105: 0.176622246 | DS105: 97 | DT105: 17252.33631 | DU105: -0.2901746928 | DV105: 31144.59895 | DW105: 0.176622246 | DX105: 97 | DY105: -25957.57709 | DZ105: -25845.93156 | EA105: tx B | EB105: 111.6455296 | EG105: 38400 | EH105: 0.5865 | EI105: 0.4135 | EJ105: 2526.406638 | EK105: 1556.466583 | EL105: 0.5865
BA106: 98 | BB106: 17392.96495 | BC106: 0.7776393532 | BD106: 29742.79763 | BE106: 0.8388883002 | DS106: 98 | DT106: 17392.96495 | DU106: 0.7776393532 | DV106: 29742.79763 | DW106: 0.8388883002 | DX106: 98 | DY106: 5936.215647 | DZ106: -4576.148625 | EA106: tx A | EB106: 0 | EG106: 38800 | EH106: 0.5777 | EI106: 0.4223 | EJ106: 2727.384144 | EK106: 1891.6599 | EL106: 0.5777
BA107: 99 | BB107: 18117.07738 | BC107: 0.4895389759 | BD107: 29642.63096 | BE107: 0.6753407445 | DS107: 99 | DT107: 18117.07738 | DU107: 0.4895389759 | DV107: 29642.63096 | DW107: 0.6753407445 | DX107: 99 | DY107: -3430.908099 | DZ107: -9382.408625 | EA107: tx A | EB107: 0 | EG107: 39200 | EH107: 0.5686 | EI107: 0.4314 | EJ107: 2928.361649 | EK107: 2226.853216 | EL107: 0.5686
BA108: 100 | BB108: 16450.85013 | BC108: 0.4366371847 | BD108: 29996.16977 | BE108: 0.5958510377 | DS108: 100 | DT108: 16450.85013 | DU108: 0.4366371847 | DV108: 29996.16977 | DW108: 0.5958510377 | DX108: 100 | DY108: -3351.734592 | DZ108: -12120.63864 | EA108: tx A | EB108: 0 | EG108: 39600 | EH108: 0.5589 | EI108: 0.4411 | EJ108: 3129.339155 | EK108: 2562.046533 | EL108: 0.5589
BA109: 101 | BB109: 16313.86863 | BC109: 0.8910303105 | BD109: 29948.32774 | BE109: 1.027064349 | DS109: 101 | DT109: 16313.86863 | DU109: 0.8910303105 | DV109: 29948.32774 | DW109: 1.027064349 | DX109: 101 | DY109: 10417.04069 | DZ109: 863.6027271 | EA109: tx A | EB109: 0 | EG109: 40000 | EH109: 0.5505 | EI109: 0.4495 | EJ109: 3330.31666 | EK109: 2897.239849 | EL109: 0.5505
BA110: 102 | BB110: 16264.54373 | BC110: 0.7041308108 | BD110: 29254.63883 | BE110: 0.8994763249 | DS110: 102 | DT110: 16264.54373 | DU110: 0.7041308108 | DV110: 29254.63883 | DW110: 0.8994763249 | DX110: 102 | DY110: 4859.38059 | DZ110: -2270.349079 | EA110: tx A | EB110: 0 | EG110: 40400 | EH110: 0.54 | EI110: 0.46 | EJ110: 3531.294166 | EK110: 3232.433165 | EL110: 0.54
BA111: 103 | BB111: 17805.15931 | BC111: 0.8695325656 | BD111: 30431.36229 | BE111: 1.183920519 | DS111: 103 | DT111: 17805.15931 | DU111: 0.8695325656 | DV111: 30431.36229 | DW111: 1.183920519 | DX111: 103 | DY111: 8280.817658 | DZ111: 5086.253268 | EA111: tx A | EB111: 0 | EG111: 40800 | EH111: 0.5319 | EI111: 0.4681 | EJ111: 3732.271671 | EK111: 3567.626482 | EL111: 0.5319
BA112: 104 | BB112: 16652.16159 | BC112: 0.4988055265 | BD112: 30272.68289 | BE112: 0.8450063862 | DS112: 104 | DT112: 16652.16159 | DU112: 0.4988055265 | DV112: 30272.68289 | DW112: 0.8450063862 | DX112: 104 | DY112: -1687.995792 | DZ112: -4922.491306 | EA112: tx A | EB112: 0 | EG112: 41200 | EH112: 0.5234 | EI112: 0.4766 | EJ112: 3933.249177 | EK112: 3902.819798 | EL112: 0.5234
BA113: 105 | BB113: 16436.57652 | BC113: 1.123284069 | BD113: 32459.48481 | BE113: 1.574285208 | DS113: 105 | DT113: 16436.57652 | DU113: 1.123284069 | DV113: 32459.48481 | DW113: 1.574285208 | DX113: 105 | DY113: 17261.94555 | DZ113: 14769.07144 | EA113: tx A | EB113: 0 | EG113: 41600 | EH113: 0.5149 | EI113: 0.4851 | EJ113: 4134.226682 | EK113: 4238.013115 | EL113: 0.4851
BA114: 106 | BB114: 15155.05357 | BC114: 1.009203066 | BD114: 29697.45818 | BE114: 0.9936937721 | DS114: 106 | DT114: 15155.05357 | DU114: 1.009203066 | DV114: 29697.45818 | DW114: 0.9936937721 | DX114: 106 | DY114: 15121.03841 | DZ114: 113.3549804 | EA114: tx A | EB114: 0 | EG114: 42000 | EH114: 0.5085 | EI114: 0.4915 | EJ114: 4335.204187 | EK114: 4573.206431 | EL114: =IF(EJ114>EK114,EH114,EI114) -> 0.4915
BA115: 107 | BB115: 16681.05524 | BC115: 0.709081313 | BD115: 33109.43281 | BE115: 1.264425828 | DS115: 107 | DT115: 16681.05524 | DU115: 0.709081313 | DV115: 33109.43281 | DW115: 1.264425828 | DX115: 107 | DY115: 4591.384155 | DZ115: 4823.342026 | EA115: tx B | EB115: 231.957871 | EG115: 42400 | EH115: 0.503 | EI115: 0.497 | EJ115: 4536.181693 | EK115: 4908.399748 | EL115: 0.497
BA116: 108 | BB116: 17843.45482 | BC116: 1.489290891 | BD116: 31454.08571 | BE116: 1.931414998 | DS116: 108 | DT116: 17843.45482 | DU116: 1.489290891 | DV116: 31454.08571 | DW116: 1.931414998 | DX116: 108 | DY116: 26835.27191 | DZ116: 26488.36424 | EA116: tx A | EB116: 0 | EG116: 42800 | EH116: 0.4947 | EI116: 0.5053 | EJ116: 4737.159198 | EK116: 5243.593064 | EL116: 0.5053
BA117: 109 | BB117: 16402.80816 | BC117: 0.2153499359 | BD117: 28801.53504 | BE117: 0.4543283855 | DS117: 109 | DT117: 16402.80816 | DU117: 0.2153499359 | DV117: 28801.53504 | DW117: 0.4543283855 | DX117: 109 | DY117: -9942.31008 | DZ117: -15171.68348 | EA117: tx A | EB117: 0 | EG117: 43200 | EH117: 0.4869 | EI117: 0.5131 | EJ117: 4938.136704 | EK117: 5578.78638 | EL117: 0.5131
BA118: 110 | BB118: 16402.72438 | BC118: 0.5368337902 | BD118: 30533.03571 | BE118: 0.9396058247 | DS118: 110 | DT118: 16402.72438 | DU118: 0.5368337902 | DV118: 30533.03571 | DW118: 0.9396058247 | DX118: 110 | DY118: -297.7106721 | DZ118: -2344.860969 | EA118: tx A | EB118: 0 | EG118: 43600 | EH118: 0.4792 | EI118: 0.5208 | EJ118: 5139.114209 | EK118: 5913.979697 | EL118: 0.5208
BA119: 111 | BB119: 16637.90771 | BC119: 0.09640198757 | BD119: 29564.44395 | BE119: 0.3169906956 | DS119: 111 | DT119: 16637.90771 | DU119: 0.09640198757 | DV119: 29564.44395 | DW119: 0.3169906956 | DX119: 111 | DY119: -13745.84808 | DZ119: -20054.72308 | EA119: tx A | EB119: 0 | EG119: 44000 | EH119: 0.4728 | EI119: 0.5272 | EJ119: 5340.091715 | EK119: 6249.173013 | EL119: 0.5272
BA120: 112 | BB120: 17443.90334 | BC120: 1.162443274 | BD120: 29616.68125 | BE120: 1.438590171 | DS120: 112 | DT120: 17443.90334 | DU120: 1.162443274 | DV120: 29616.68125 | DW120: 1.438590171 | DX120: 112 | DY120: 17429.39489 | DZ120: 13541.02386 | EA120: tx A | EB120: 0 | EG120: 44400 | EH120: 0.4646 | EI120: 0.5354 | EJ120: 5541.06922 | EK120: 6584.36633 | EL120: 0.5354
BA121: 113 | BB121: 15457.64495 | BC121: -0.8830307447 | BD121: 28837.30365 | BE121: -0.6455687867 | DS121: 113 | DT121: 15457.64495 | DU121: -0.8830307447 | DV121: 28837.30365 | DW121: -0.6455687867 | DX121: 113 | DY121: -41948.56729 | DZ121: -48204.36725 | EA121: tx A | EB121: 0 | EG121: 44800 | EH121: 0.4589 | EI121: 0.5411 | EJ121: 5742.046725 | EK121: 6919.559646 | EL121: 0.5411
BA122: 114 | BB122: 17713.09249 | BC122: 0.832559198 | BD122: 31780.38366 | BE122: 1.252867493 | DS122: 114 | DT122: 17713.09249 | DU122: 0.832559198 | DV122: 31780.38366 | DW122: 1.252867493 | DX122: 114 | DY122: 7263.683455 | DZ122: 5805.641126 | EA122: tx A | EB122: 0 | EG122: 45200 | EH122: 0.4526 | EI122: 0.5474 | EJ122: 5943.024231 | EK122: 7254.752963 | EL122: 0.5474
BA123: 115 | BB123: 18040.86207 | BC123: 0.3405551797 | BD123: 30640.72062 | BE123: 0.708159903 | DS123: 115 | DT123: 18040.86207 | DU123: 0.3405551797 | DV123: 30640.72062 | DW123: 0.708159903 | DX123: 115 | DY123: -7824.206676 | DZ123: -9395.923532 | EA123: tx A | EB123: 0 | EG123: 45600 | EH123: 0.4463 | EI123: 0.5537 | EJ123: 6144.001736 | EK123: 7589.946279 | EL123: 0.5537
BA124: 116 | BB124: 16354.2408 | BC124: -0.3924300226 | BD124: 29828.88136 | BE124: -0.2033008204 | DS124: 116 | DT124: 16354.2408 | DU124: -0.3924300226 | DV124: 29828.88136 | DW124: -0.2033008204 | DX124: 116 | DY124: -28127.14147 | DZ124: -35927.90597 | EA124: tx A | EB124: 0 | EG124: 46000 | EH124: 0.4378 | EI124: 0.5622 | EJ124: 6344.979242 | EK124: 7925.139595 | EL124: 0.5622
BA125: 117 | BB125: 16217.93128 | BC125: 0.4544480418 | BD125: 28877.40102 | BE125: 0.6484204289 | DS125: 117 | DT125: 16217.93128 | DU125: 0.4544480418 | DV125: 28877.40102 | DW125: 0.6484204289 | DX125: 117 | DY125: -2584.490027 | DZ125: -9424.788157 | EA125: tx A | EB125: 0 | EG125: 46400 | EH125: 0.4316 | EI125: 0.5684 | EJ125: 6545.956747 | EK125: 8260.332912 | EL125: 0.5684
BA126: 118 | BB126: 17231.39677 | BC126: -0.2271916917 | BD126: 30957.43069 | BE126: 0.2841175762 | DS126: 118 | DT126: 17231.39677 | DU126: -0.2271916917 | DV126: 30957.43069 | DW126: 0.2841175762 | DX126: 118 | DY126: -24047.14752 | DZ126: -22433.90341 | EA126: tx B | EB126: 1613.244117 | EG126: 46800 | EH126: 0.4254 | EI126: 0.5746 | EJ126: 6746.934253 | EK126: 8595.526228 | EL126: 0.5746
BA127: 119 | BB127: 15069.26005 | BC127: 0.08143967687 | BD127: 30112.43592 | BE127: 0.4928314334 | DS127: 119 | DT127: 15069.26005 | DU127: 0.08143967687 | DV127: 30112.43592 | DW127: 0.4928314334 | DX127: 119 | DY127: -12626.06974 | DZ127: -15327.49292 | EA127: tx A | EB127: 0 | EG127: 47200 | EH127: 0.4179 | EI127: 0.5821 | EJ127: 6947.911758 | EK127: 8930.719545 | EL127: 0.5821
BA128: 120 | BB128: 15680.77692 | BC128: 0.1883308765 | BD128: 30387.23624 | BE128: 0.5562748583 | DS128: 120 | DT128: 15680.77692 | DU128: 0.1883308765 | DV128: 30387.23624 | DW128: 0.5562748583 | DX128: 120 | DY128: -10030.85062 | DZ128: -13698.99049 | EA128: tx A | EB128: 0 | EG128: 47600 | EH128: 0.411 | EI128: 0.589 | EJ128: 7148.889264 | EK128: 9265.912861 | EL128: 0.589
BA129: 121 | BB129: 17312.02501 | BC129: 0.6080730884 | BD129: 30832.99545 | BE129: 0.9420154825 | DS129: 121 | DT129: 17312.02501 | DU129: 0.6080730884 | DV129: 30832.99545 | DW129: 0.9420154825 | DX129: 121 | DY129: 930.1676428 | DZ129: -2572.530976 | EA129: tx A | EB129: 0 | EG129: 48000 | EH129: 0.4041 | EI129: 0.5959 | EJ129: 7349.866769 | EK129: 9601.106177 | EL129: 0.5959
BA130: 122 | BB130: 17808.69657 | BC130: 0.8148190991 | BD130: 31792.03303 | BE130: 1.263424704 | DS130: 122 | DT130: 17808.69657 | DU130: 0.8148190991 | DV130: 31792.03303 | DW130: 1.263424704 | DX130: 122 | DY130: 6635.876406 | DZ130: 6110.708085 | EA130: tx A | EB130: 0 | EG130: 48400 | EH130: 0.3977 | EI130: 0.6023 | EJ130: 7550.844274 | EK130: 9936.299494 | EL130: 0.6023
BA131: 123 | BB131: 16856.3331 | BC131: 1.194749813 | BD131: 29732.61336 | BE131: 1.402414017 | DS131: 123 | DT131: 16856.3331 | DU131: 1.194749813 | DV131: 29732.61336 | DW131: 1.402414017 | DX131: 123 | DY131: 18986.16129 | DZ131: 12339.80714 | EA131: tx A | EB131: 0 | EG131: 48800 | EH131: 0.392 | EI131: 0.608 | EJ131: 7751.82178 | EK131: 10271.49281 | EL131: 0.608
BA132: 124 | BB132: 18082.63294 | BC132: 0.464151974 | BD132: 31164.05706 | BE132: 0.8883837932 | DS132: 124 | DT132: 18082.63294 | DU132: 0.464151974 | DV132: 31164.05706 | DW132: 0.8883837932 | DX132: 124 | DY132: -4158.07372 | DZ132: -4512.54326 | EA132: tx A | EB132: 0 | EG132: 49200 | EH132: 0.3871 | EI132: 0.6129 | EJ132: 7952.799285 | EK132: 10606.68613 | EL132: 0.6129
BA133: 125 | BB133: 17021.22395 | BC133: 0.8367270266 | BD133: 29788.33618 | BE133: 0.9874114056 | DS133: 125 | DT133: 17021.22395 | DU133: 0.8367270266 | DV133: 29788.33618 | DW133: 0.9874114056 | DX133: 125 | DY133: 8080.586844 | DZ133: -165.9940104 | EA133: tx A | EB133: 0 | EG133: 49600 | EH133: 0.3817 | EI133: 0.6183 | EJ133: 8153.776791 | EK133: 10941.87944 | EL133: 0.6183
BA134: 126 | BB134: 16969.36063 | BC134: 0.365991735 | BD134: 30411.57262 | BE134: 0.745786141 | DS134: 126 | DT134: 16969.36063 | DU134: 0.365991735 | DV134: 30411.57262 | DW134: 0.745786141 | DX134: 126 | DY134: -5989.608575 | DZ134: -8037.988386 | EA134: tx A | EB134: 0 | EG134: 50000 | EH134: 0.3744 | EI134: 0.6256 | EJ134: 8354.754296 | EK134: 11277.07276 | EL134: 0.6256
BA135: 127 | BB135: 17078.63578 | BC135: 0.01218786121 | BD135: 31145.97938 | BE135: 0.487752283 | DS135: 127 | DT135: 17078.63578 | DU135: 0.01218786121 | DV135: 31145.97938 | DW135: 0.487752283 | DX135: 127 | DY135: -16712.99994 | DZ135: -16513.41089 | EA135: tx B | EB135: 199.589049 | EG135: 50400 | EH135: 0.3697 | EI135: 0.6303 | EJ135: 8555.731802 | EK135: 11612.26608 | EL135: 0.6303
BA136: 128 | BB136: 15789.40076 | BC136: 0.9457471811 | BD136: 30381.6643 | BE136: 1.161858427 | DS136: 128 | DT136: 15789.40076 | DU136: 0.9457471811 | DV136: 30381.6643 | DW136: 1.161858427 | DX136: 128 | DY136: 12583.01468 | DZ136: 4474.088522 | EA136: tx A | EB136: 0 | EG136: 50800 | EH136: 0.3653 | EI136: 0.6347 | EJ136: 8756.709307 | EK136: 11947.45939 | EL136: 0.6347
BA137: 129 | BB137: 16302.86399 | BC137: 0.912794226 | BD137: 28607.70914 | BE137: 1.060515322 | DS137: 129 | DT137: 16302.86399 | DU137: 0.912794226 | DV137: 28607.70914 | DW137: 1.060515322 | DX137: 129 | DY137: =lambda*DU137-DT137 -> 11080.96279 | DZ137: =lambda*DW137-DV137 -> 3207.750535 | EA137: =IF(DY137>DZ137, "tx A", IF(DZ137>DY137, "tx B", "either")) -> tx A | EB137: =IF(EA$2="tx A", MAX(0,DZ137-DY137), MAX(0, DY137-DZ137)) -> 0 | EG137: 51200 | EH137: 0.361 | EI137: 0.639 | EJ137: 8957.686812 | EK137: 12282.65271 | EL137: 0.639
BA138: 130 | BB138: 16042.36965 | BC138: 1.648287703 | BD138: 31063.8834 | BE138: 1.968748799 | DS138: 130 | DT138: 16042.36965 | DU138: 1.648287703 | DV138: 31063.8834 | DW138: 1.968748799 | DX138: 130 | DY138: 33406.26144 | DZ138: 27998.58057 | EA138: tx A | EB138: 0 | EG138: 51600 | EH138: 0.3562 | EI138: 0.6438 | EJ138: 9158.664318 | EK138: 12617.84603 | EL138: =IF(EJ138>EK138,EH138,EI138) -> 0.6438
BA139: =1+BA138 -> 131 | BB139: 16417.5518 | BC139: 0.1286006183 | BD139: 31034.94819 | BE139: 0.4682971903 | DS139: =1+DS138 -> 131 | DT139: 16417.5518 | DU139: 0.1286006183 | DV139: 31034.94819 | DW139: 0.4682971903 | DX139: 131 | DY139: -12559.53325 | DZ139: -16986.03248 | EA139: tx A | EB139: 0 | EG139: =EG138+400 -> 52000 | EH139: 0.3516 | EI139: 0.6484 | EJ139: 9359.641823 | EK139: 12953.03934 | EL139: 0.6484
BA140: 132 | BB140: 17971.37347 | BC140: 0.858754943 | BD140: 30241.37804 | BE140: 1.132024867 | DS140: 132 | DT140: 17971.37347 | DU140: 0.858754943 | DV140: 30241.37804 | DW140: 1.132024867 | DX140: 132 | DY140: 7791.274817 | DZ140: 3719.367974 | EA140: tx A | EB140: 0 | EG140: 52400 | EH140: 0.3468 | EI140: 0.6532 | EJ140: 9560.619329 | EK140: 13288.23266 | EL140: 0.6532
BA141: 133 | BB141: 16461.0783 | BC141: 0.8308230029 | BD141: 31234.13095 | BE141: 1.017389777 | DS141: 133 | DT141: 16461.0783 | DU141: 0.8308230029 | DV141: 31234.13095 | DW141: 1.017389777 | DX141: 133 | DY141: 8463.611791 | DZ141: -712.437638 | EA141: tx A | EB141: 0 | EG141: 52800 | EH141: 0.3423 | EI141: 0.6577 | EJ141: 9761.596834 | EK141: 13623.42597 | EL141: 0.6577
BA142: 134 | BB142: 18230.50757 | BC142: 0.9586833179 | BD142: 32322.39904 | BE142: 1.392365718 | DS142: 134 | DT142: 18230.50757 | DU142: 0.9586833179 | DV142: 32322.39904 | DW142: 1.392365718 | DX142: 134 | DY142: 10529.99197 | DZ142: 9448.572507 | EA142: tx A | EB142: 0 | EG142: 53200 | EH142: 0.3374 | EI142: 0.6626 | EJ142: 9962.57434 | EK142: 13958.61929 | EL142: 0.6626
BA143: 135 | BB143: 16155.28032 | BC143: 0.6454445532 | BD143: 32066.68092 | BE143: 1.132532837 | DS143: 135 | DT143: 16155.28032 | DU143: 0.6454445532 | DV143: 32066.68092 | DW143: 1.132532837 | DX143: 135 | DY143: 3208.056278 | DZ143: 1909.304177 | EA143: tx A | EB143: 0 | EG143: 53600 | EH143: 0.3327 | EI143: 0.6673 | EJ143: 10163.55185 | EK143: 14293.81261 | EL143: 0.6673
BA144: 136 | BB144: 16541.09399 | BC144: 0.3081110887 | BD144: 30457.6031 | BE144: 0.6466576493 | DS144: 136 | DT144: 16541.09399 | DU144: 0.3081110887 | DV144: 30457.6031 | DW144: 0.6466576493 | DX144: 136 | DY144: -7297.761331 | DZ144: -11057.87362 | EA144: tx A | EB144: 0 | EG144: 54000 | EH144: 0.3277 | EI144: 0.6723 | EJ144: 10364.52935 | EK144: 14629.00592 | EL144: 0.6723
BA145: 137 | BB145: 15176.97094 | BC145: -0.3314867024 | BD145: 28575.43413 | BE145: -0.2023015586 | DS145: 137 | DT145: 15176.97094 | DU145: -0.3314867024 | DV145: 28575.43413 | DW145: -0.2023015586 | DX145: 137 | DY145: -25121.57202 | DZ145: -34644.48089 | EA145: tx A | EB145: 0 | EG145: 54400 | EH145: 0.3226 | EI145: 0.6774 | EJ145: 10565.50686 | EK145: 14964.19924 | EL145: 0.6774
BA146: 138 | BB146: 16563.10482 | BC146: 0.4137294838 | BD146: 30512.38637 | BE146: 0.8822590745 | DS146: 138 | DT146: 16563.10482 | DU146: 0.4137294838 | DV146: 30512.38637 | DW146: 0.8822590745 | DX146: 138 | DY146: -4151.220304 | DZ146: -4044.614132 | EA146: tx B | EB146: 106.6061719 | EG146: 54800 | EH146: 0.3189 | EI146: 0.6811 | EJ146: 10766.48436 | EK146: 15299.39256 | EL146: 0.6811
BA147: 139 | BB147: 16310.761 | BC147: 0.1482560092 | BD147: 30791.22134 | BE147: 0.6226270747 | DS147: 139 | DT147: 16310.761 | DU147: 0.1482560092 | DV147: 30791.22134 | DW147: 0.6226270747 | DX147: 139 | DY147: -11863.08072 | DZ147: -12112.4091 | EA147: tx A | EB147: 0 | EG147: 55200 | EH147: 0.3143 | EI147: 0.6857 | EJ147: 10967.46187 | EK147: 15634.58587 | EL147: 0.6857
BA148: 140 | BB148: 16092.81176 | BC148: 0.4135466357 | BD148: 30088.10756 | BE148: 0.5691039464 | DS148: 140 | DT148: 16092.81176 | DU148: 0.4135466357 | DV148: 30088.10756 | DW148: 0.5691039464 | DX148: 140 | DY148: -3686.412684 | DZ148: -13014.98916 | EA148: tx A | EB148: 0 | EG148: 55600 | EH148: 0.3101 | EI148: 0.6899 | EJ148: 11168.43937 | EK148: 15969.77919 | EL148: 0.6899
BA149: 141 | BB149: 15858.5944 | BC149: -0.1737997363 | BD149: 31069.53849 | BE149: 0.3371216505 | DS149: 141 | DT149: 15858.5944 | DU149: -0.1737997363 | DV149: 31069.53849 | DW149: 0.3371216505 | DX149: 141 | DY149: -21072.58649 | DZ149: -20955.88897 | EA149: tx B | EB149: 116.697521 | EG149: 56000 | EH149: 0.3063 | EI149: 0.6937 | EJ149: 11369.41688 | EK149: 16304.97251 | EL149: 0.6937
BA150: 142 | BB150: 15540.9383 | BC150: -0.1282070154 | BD150: 30101.65062 | BE150: 0.2055252013 | DS150: 142 | DT150: 15540.9383 | DU150: -0.1282070154 | DV150: 30101.65062 | DW150: 0.2055252013 | DX150: 142 | DY150: -19387.14876 | DZ150: -23935.89458 | EA150: tx A | EB150: 0 | EG150: 56400 | EH150: 0.3016 | EI150: 0.6984 | EJ150: 11570.39438 | EK150: 16640.16582 | EL150: 0.6984
BA151: 143 | BB151: 16168.27425 | BC151: 0.3418391517 | BD151: 31573.27464 | BE151: 0.9335119642 | DS151: 143 | DT151: 16168.27425 | DU151: 0.3418391517 | DV151: 31573.27464 | DW151: 0.9335119642 | DX151: 143 | DY151: -5913.099696 | DZ151: -3567.915711 | EA151: tx B | EB151: 2345.183985 | EG151: 56800 | EH151: 0.2975 | EI151: 0.7025 | EJ151: 11771.37189 | EK151: 16975.35914 | EL151: 0.7025
BA152: 144 | BB152: 17676.49949 | BC152: 0.8811680531 | BD152: 30010.33955 | BE152: 1.109774049 | DS152: 144 | DT152: 17676.49949 | DU152: 0.8811680531 | DV152: 30010.33955 | DW152: 1.109774049 | DX152: 144 | DY152: 8758.542106 | DZ152: 3282.88191 | EA152: tx A | EB152: 0 | EG152: 57200 | EH152: 0.2936 | EI152: 0.7064 | EJ152: 11972.34939 | EK152: 17310.55246 | EL152: 0.7064
BA153: 145 | BB153: 17123.20017 | BC153: -0.2773573159 | BD153: 29687.41438 | BE153: 0.1496141442 | DS153: 145 | DT153: 17123.20017 | DU153: -0.2773573159 | DV153: 29687.41438 | DW153: 0.1496141442 | DX153: 145 | DY153: -25443.91965 | DZ153: -25198.99005 | EA153: tx B | EB153: 244.9295979 | EG153: 57600 | EH153: 0.2889 | EI153: 0.7111 | EJ153: 12173.3269 | EK153: 17645.74577 | EL153: 0.7111
BA154: 146 | BB154: 18186.35129 | BC154: 0.1267984865 | BD154: 32377.6652 | BE154: 0.7914443702 | DS154: 146 | DT154: 18186.35129 | DU154: 0.1267984865 | DV154: 32377.6652 | DW154: 0.7914443702 | DX154: 146 | DY154: -14382.3967 | DZ154: -8634.334091 | EA154: tx B | EB154: 5748.062606 | EG154: 58000 | EH154: 0.2846 | EI154: 0.7154 | EJ154: 12374.3044 | EK154: 17980.93909 | EL154: 0.7154
BA155: 147 | BB155: 17424.03048 | BC155: 0.6821899919 | BD155: 30147.17015 | BE155: 0.8102623085 | DS155: 147 | DT155: 17424.03048 | DU155: 0.6821899919 | DV155: 30147.17015 | DW155: 0.8102623085 | DX155: 147 | DY155: 3041.669282 | DZ155: -5839.300898 | EA155: tx A | EB155: 0 | EG155: 58400 | EH155: 0.2806 | EI155: 0.7194 | EJ155: 12575.28191 | EK155: 18316.1324 | EL155: 0.7194
BA156: 148 | BB156: 17198.95045 | BC156: 1.436420755 | BD156: 31036.61782 | BE156: 1.704051148 | DS156: 148 | DT156: 17198.95045 | DU156: 1.436420755 | DV156: 31036.61782 | DW156: 1.704051148 | DX156: 148 | DY156: 25893.67221 | DZ156: 20084.91662 | EA156: tx A | EB156: 0 | EG156: 58800 | EH156: 0.2783 | EI156: 0.7217 | EJ156: 12776.25942 | EK156: 18651.32572 | EL156: 0.7217
BA157: 149 | BB157: 17054.77068 | BC157: 0.7039757983 | BD157: 29699.29713 | BE157: 0.9146962254 | DS157: 149 | DT157: 17054.77068 | DU157: 0.7039757983 | DV157: 29699.29713 | DW157: 0.9146962254 | DX157: 149 | DY157: 4064.503266 | DZ157: -2258.410372 | EA157: tx A | EB157: 0 | EG157: 59200 | EH157: 0.2754 | EI157: 0.7246 | EJ157: 12977.23692 | EK157: 18986.51904 | EL157: 0.7246
BA158: 150 | BB158: 17416.43733 | BC158: 0.965216766 | BD158: 29888.10059 | BE158: 1.141956684 | DS158: 150 | DT158: 17416.43733 | DU158: 0.965216766 | DV158: 29888.10059 | DW158: 1.141956684 | DX158: 150 | DY158: 11540.06565 | DZ158: 4370.599925 | EA158: tx A | EB158: 0 | EG158: 59600 | EH158: 0.2712 | EI158: 0.7288 | EJ158: 13178.21443 | EK158: 19321.71235 | EL158: 0.7288
BA159: 151 | BB159: 15819.22138 | BC159: 0.7924941529 | BD159: 31753.65849 | BE159: 1.227910266 | DS159: 151 | DT159: 15819.22138 | DU159: 0.7924941529 | DV159: 31753.65849 | DW159: 1.227910266 | DX159: 151 | DY159: 7955.603203 | DZ159: 5083.649484 | EA159: tx A | EB159: 0 | EG159: 60000 | EH159: 0.268 | EI159: 0.732 | EJ159: 13379.19193 | EK159: 19656.90567 | EL159: 0.732
BA160: 152 | BB160: 16283.52735 | BC160: -0.03889760224 | BD160: 28458.50537 | BE160: 0.04820405123 | DS160: 152 | DT160: 16283.52735 | DU160: -0.03889760224 | DV160: 28458.50537 | DW160: 0.04820405123 | DX160: 152 | DY160: -17450.45541 | DZ160: -27012.38383 | EA160: tx A | EB160: 0 | EG160: 60400 | EH160: 0.2651 | EI160: 0.7349 | EJ160: 13580.16944 | EK160: 19992.09899 | EL160: 0.7349
BA161: 153 | BB161: 14897.74882 | BC161: 0.04744969867 | BD161: 31603.17159 | BE161: 0.7528273038 | DS161: 153 | DT161: 14897.74882 | DU161: 0.04744969867 | DV161: 31603.17159 | DW161: 0.7528273038 | DX161: 153 | DY161: -13474.25786 | DZ161: -9018.352479 | EA161: tx B | EB161: 4455.905377 | EG161: 60800 | EH161: 0.2618 | EI161: 0.7382 | EJ161: 13781.14694 | EK161: 20327.2923 | EL161: 0.7382
BA162: 154 | BB162: 16787.10235 | BC162: 0.4678215387 | BD162: 31884.87154 | BE162: 1.00860253 | DS162: 154 | DT162: 16787.10235 | DU162: 0.4678215387 | DV162: 31884.87154 | DW162: 1.00860253 | DX162: 154 | DY162: -2752.456184 | DZ162: -1626.795644 | EA162: tx B | EB162: 1125.66054 | EG162: 61200 | EH162: 0.2582 | EI162: 0.7418 | EJ162: 13982.12445 | EK162: 20662.48562 | EL162: 0.7418
BA163: 155 | BB163: 16979.37264 | BC163: 1.481130344 | BD163: 30144.85219 | BE163: 1.62718904 | DS163: 155 | DT163: 16979.37264 | DU163: 1.481130344 | DV163: 30144.85219 | DW163: 1.62718904 | DX163: 155 | DY163: 27454.53768 | DZ163: 18670.819 | EA163: tx A | EB163: 0 | EG163: 61600 | EH163: 0.2551 | EI163: 0.7449 | EJ163: 14183.10195 | EK163: 20997.67894 | EL163: 0.7449
BA164: 156 | BB164: 17842.43822 | BC164: 0.9006245398 | BD164: 30402.24523 | BE164: 1.160282758 | DS164: 156 | DT164: 17842.43822 | DU164: 0.9006245398 | DV164: 30402.24523 | DW164: 1.160282758 | DX164: 156 | DY164: 9176.297975 | DZ164: 4406.237519 | EA164: tx A | EB164: 0 | EG164: 62000 | EH164: 0.252 | EI164: 0.748 | EJ164: 14384.07946 | EK164: 21332.87225 | EL164: 0.748
BA165: 157 | BB165: 17204.41493 | BC165: 0.6151236549 | BD165: 31881.83298 | BE165: 1.137297456 | DS165: 157 | DT165: 17204.41493 | DU165: 0.6151236549 | DV165: 31881.83298 | DW165: 1.137297456 | DX165: 157 | DY165: 1249.294714 | DZ165: 2237.090716 | EA165: tx B | EB165: 987.796002 | EG165: 62400 | EH165: 0.2487 | EI165: 0.7513 | EJ165: 14585.05696 | EK165: 21668.06557 | EL165: 0.7513
BA166: 158 | BB166: 14639.91027 | BC166: 1.102666301 | BD166: 30038.91187 | BE166: 1.230655574 | DS166: 158 | DT166: 14639.91027 | DU166: 1.102666301 | DV166: 30038.91187 | DW166: 1.230655574 | DX166: 158 | DY166: 18440.07875 | DZ166: 6880.755355 | EA166: tx A | EB166: 0 | EG166: 62800 | EH166: 0.2453 | EI166: 0.7547 | EJ166: 14786.03447 | EK166: 22003.25889 | EL166: 0.7547
BA167: 159 | BB167: 16312.09185 | BC167: 0.647388456 | BD167: 31054.24143 | BE167: 0.8805038344 | DS167: 159 | DT167: 16312.09185 | DU167: 0.647388456 | DV167: 31054.24143 | DW167: 0.8805038344 | DX167: 159 | DY167: 3109.561835 | DZ167: -4639.126397 | EA167: tx A | EB167: 0 | EG167: 63200 | EH167: 0.2417 | EI167: 0.7583 | EJ167: 14987.01198 | EK167: 22338.4522 | EL167: 0.7583
BA168: 160 | BB168: 18476.4464 | BC168: 0.2796433985 | BD168: 29843.51403 | BE168: 0.7757379055 | DS168: 160 | DT168: 18476.4464 | DU168: 0.2796433985 | DV168: 29843.51403 | DW168: 0.7757379055 | DX168: 160 | DY168: -10087.14444 | DZ168: -6571.376864 | EA168: tx B | EB168: 3515.76758 | EG168: 63600 | EH168: 0.239 | EI168: 0.761 | EJ168: 15187.98948 | EK168: 22673.64552 | EL168: 0.761
BA169: 161 | BB169: 16016.10047 | BC169: -0.05703263344 | BD169: 30051.43625 | BE169: 0.07637486213 | DS169: 161 | DT169: 16016.10047 | DU169: -0.05703263344 | DV169: 30051.43625 | DW169: 0.07637486213 | DX169: 161 | DY169: -17727.07948 | DZ169: -27760.19038 | EA169: tx A | EB169: 0 | EG169: 64000 | EH169: 0.2369 | EI169: 0.7631 | EJ169: 15388.96699 | EK169: 23008.83883 | EL169: 0.7631
BA170: 162 | BB170: 16877.4829 | BC170: 1.211057311 | BD170: 29409.79205 | BE170: 1.35766483 | DS170: 162 | DT170: 16877.4829 | DU170: 1.211057311 | DV170: 29409.79205 | DW170: 1.35766483 | DX170: 162 | DY170: 19454.23645 | DZ170: 11320.15286 | EA170: tx A | EB170: 0 | EG170: 64400 | EH170: 0.2341 | EI170: 0.7659 | EJ170: 15589.94449 | EK170: 23344.03215 | EL170: 0.7659
BA171: 163 | BB171: 16360.45023 | BC171: 1.086923425 | BD171: 30335.74499 | BE171: 1.193473018 | DS171: 163 | DT171: 16360.45023 | DU171: 1.086923425 | DV171: 30335.74499 | DW171: 1.193473018 | DX171: 163 | DY171: 16247.25252 | DZ171: 5468.445554 | EA171: tx A | EB171: 0 | EG171: 64800 | EH171: 0.2318 | EI171: 0.7682 | EJ171: 15790.922 | EK171: 23679.22547 | EL171: 0.7682
BA172: 164 | BB172: 14794.70213 | BC172: 1.006960007 | BD172: 30472.91173 | BE172: 1.274060996 | DS172: 164 | DT172: 14794.70213 | DU172: 1.006960007 | DV172: 30472.91173 | DW172: 1.274060996 | DX172: 164 | DY172: 15414.09807 | DZ172: 7748.918132 | EA172: tx A | EB172: 0 | EG172: 65200 | EH172: 0.2292 | EI172: 0.7708 | EJ172: 15991.8995 | EK172: 24014.41878 | EL172: 0.7708
BA173: 165 | BB173: 18416.58336 | BC173: 0.6268637656 | BD173: 30868.23676 | BE173: 0.9631380309 | DS173: 165 | DT173: 18416.58336 | DU173: 0.6268637656 | DV173: 30868.23676 | DW173: 0.9631380309 | DX173: 165 | DY173: 389.3296118 | DZ173: -1974.095831 | EA173: tx A | EB173: 0 | EG173: 65600 | EH173: 0.2266 | EI173: 0.7734 | EJ173: 16192.87701 | EK173: 24349.6121 | EL173: 0.7734
BA174: 166 | BB174: 16995.37774 | BC174: -0.4070204934 | BD174: 31223.17009 | BE174: 0.1643338228 | DS174: 166 | DT174: 16995.37774 | DU174: -0.4070204934 | DV174: 31223.17009 | DW174: 0.1643338228 | DX174: 166 | DY174: -29205.99254 | DZ174: -26293.15541 | EA174: tx B | EB174: 2912.837133 | EG174: 66000 | EH174: 0.2247 | EI174: 0.7753 | EJ174: 16393.85451 | EK174: 24684.80542 | EL174: 0.7753
BA175: 167 | BB175: 16848.66251 | BC175: 0.2240369727 | BD175: 28649.66874 | BE175: 0.2103237846 | DS175: 167 | DT175: 16848.66251 | DU175: 0.2240369727 | DV175: 28649.66874 | DW175: 0.2103237846 | DX175: 167 | DY175: -10127.55333 | DZ175: -22339.95521 | EA175: tx A | EB175: 0 | EG175: 66400 | EH175: 0.2223 | EI175: 0.7777 | EJ175: 16594.83202 | EK175: 25019.99873 | EL175: 0.7777
BA176: 168 | BB176: 16014.64514 | BC176: 0.7243598057 | BD176: 31067.69847 | BE176: 1.140992468 | DS176: 168 | DT176: 16014.64514 | DU176: 0.7243598057 | DV176: 31067.69847 | DW176: 1.140992468 | DX176: 168 | DY176: 5716.14903 | DZ176: 3162.075563 | EA176: tx A | EB176: 0 | EG176: 66800 | EH176: 0.2193 | EI176: 0.7807 | EJ176: 16795.80952 | EK176: 25355.19205 | EL176: 0.7807
BA177: 169 | BB177: 17875.89759 | BC177: 0.2661436798 | BD177: 31658.89442 | BE177: 0.8494123444 | DS177: 169 | DT177: 17875.89759 | DU177: 0.2661436798 | DV177: 31658.89442 | DW177: 0.8494123444 | DX177: 169 | DY177: -9891.587199 | DZ177: -6176.524089 | EA177: tx B | EB177: 3715.06311 | EG177: 67200 | EH177: 0.2165 | EI177: 0.7835 | EJ177: 16996.78703 | EK177: 25690.38537 | EL177: 0.7835
BA178: 170 | BB178: 16483.29246 | BC178: 0.4861211095 | BD178: 32093.87505 | BE178: 0.9466668096 | DS178: 170 | DT178: 16483.29246 | DU178: 0.4861211095 | DV178: 32093.87505 | DW178: 0.9466668096 | DX178: 170 | DY178: -1899.659179 | DZ178: -3693.870762 | EA178: tx A | EB178: 0 | EG178: 67600 | EH178: 0.2128 | EI178: 0.7872 | EJ178: 17197.76454 | EK178: 26025.57868 | EL178: 0.7872
BA179: 171 | BB179: 16938.47959 | BC179: 0.7420894973 | BD179: 30867.81422 | BE179: 1.151711918 | DS179: 171 | DT179: 16938.47959 | DU179: 0.7420894973 | DV179: 30867.81422 | DW179: 1.151711918 | DX179: 171 | DY179: 5324.205326 | DZ179: 3683.543312 | EA179: tx A | EB179: 0 | EG179: 68000 | EH179: 0.2105 | EI179: 0.7895 | EJ179: 17398.74204 | EK179: 26360.772 | EL179: 0.7895
BA180: 172 | BB180: 15975.24038 | BC180: 0.4546126046 | BD180: 29365.03965 | BE180: 0.5405349709 | DS180: 172 | DT180: 15975.24038 | DU180: 0.4546126046 | DV180: 29365.03965 | DW180: 0.5405349709 | DX180: 172 | DY180: -2336.862243 | DZ180: -13148.99053 | EA180: tx A | EB180: 0 | EG180: 68400 | EH180: 0.208 | EI180: 0.792 | EJ180: 17599.71955 | EK180: 26695.96532 | EL180: 0.792
BA181: 173 | BB181: 17217.37602 | BC181: 1.248743907 | BD181: 29721.22083 | BE181: 1.479258367 | DS181: 173 | DT181: 17217.37602 | DU181: 1.248743907 | DV181: 29721.22083 | DW181: 1.479258367 | DX181: 173 | DY181: 20244.94119 | DZ181: 14656.53019 | EA181: tx A | EB181: 0 | EG181: 68800 | EH181: 0.2054 | EI181: 0.7946 | EJ181: 17800.69705 | EK181: 27031.15863 | EL181: 0.7946
BA182: 174 | BB182: 16035.32549 | BC182: 1.288202312 | BD182: 29569.4715 | BE182: 1.324881516 | DS182: 174 | DT182: 16035.32549 | DU182: 1.288202312 | DV182: 29569.4715 | DW182: 1.324881516 | DX182: 174 | DY182: 22610.74387 | DZ182: 10176.97396 | EA182: tx A | EB182: 0 | EG182: 69200 | EH182: 0.2031 | EI182: 0.7969 | EJ182: 18001.67456 | EK182: 27366.35195 | EL182: 0.7969
BA183: 175 | BB183: 16329.82203 | BC183: 0.7515443002 | BD183: 29867.56296 | BE183: 1.083760182 | DS183: 175 | DT183: 16329.82203 | DU183: 0.7515443002 | DV183: 29867.56296 | DW183: 1.083760182 | DX183: 175 | DY183: 6216.506977 | DZ183: 2645.242514 | EA183: tx A | EB183: 0 | EG183: 69600 | EH183: 0.2013 | EI183: 0.7987 | EJ183: 18202.65206 | EK183: 27701.54526 | EL183: 0.7987
BA184: 176 | BB184: 16219.88059 | BC184: 0.4962738583 | BD184: 28147.75289 | BE184: 0.6765882032 | DS184: 176 | DT184: 16219.88059 | DU184: 0.4962738583 | DV184: 28147.75289 | DW184: 0.6765882032 | DX184: 176 | DY184: -1331.664845 | DZ184: -7850.106794 | EA184: tx A | EB184: 0 | EG184: 70000 | EH184: 0.1995 | EI184: 0.8005 | EJ184: 18403.62957 | EK184: 28036.73858 | EL184: 0.8005
BA185: 177 | BB185: 17000.45244 | BC185: 0.1700791459 | BD185: 31610.98144 | BE185: 0.6968359182 | DS185: 177 | DT185: 17000.45244 | DU185: 0.1700791459 | DV185: 31610.98144 | DW185: 0.6968359182 | DX185: 177 | DY185: -11898.07806 | DZ185: -10705.9039 | EA185: tx B | EB185: 1192.174169 | EG185: 70400 | EH185: 0.1973 | EI185: 0.8027 | EJ185: 18604.60707 | EK185: 28371.9319 | EL185: 0.8027
BA186: 178 | BB186: 15391.58182 | BC186: 1.770136718 | BD186: 31596.34804 | BE186: 1.998524727 | DS186: 178 | DT186: 15391.58182 | DU186: 1.770136718 | DV186: 31596.34804 | DW186: 1.998524727 | DX186: 178 | DY186: 37712.51972 | DZ186: 28359.39378 | EA186: tx A | EB186: 0 | EG186: 70800 | EH186: 0.195 | EI186: 0.805 | EJ186: 18805.58458 | EK186: 28707.12521 | EL186: 0.805
BA187: 179 | BB187: 16297.91451 | BC187: 0.797640142 | BD187: 29505.49365 | BE187: 1.037378761 | DS187: 179 | DT187: 16297.91451 | DU187: 0.797640142 | DV187: 29505.49365 | DW187: 1.037378761 | DX187: 179 | DY187: 7631.289756 | DZ187: 1615.869172 | EA187: tx A | EB187: 0 | EG187: 71200 | EH187: 0.1926 | EI187: 0.8074 | EJ187: 19006.56208 | EK187: 29042.31853 | EL187: 0.8074
BA188: 180 | BB188: 17943.24 | BC188: 0.985740781 | BD188: 29865.61369 | BE188: 1.325194045 | DS188: 180 | DT188: 17943.24 | DU188: 0.985740781 | DV188: 29865.61369 | DW188: 1.325194045 | DX188: 180 | DY188: 11628.98343 | DZ188: 9890.207668 | EA188: tx A | EB188: 0 | EG188: 71600 | EH188: 0.1903 | EI188: 0.8097 | EJ188: 19207.53959 | EK188: 29377.51185 | EL188: 0.8097
BA189: 181 | BB189: 17844.67256 | BC189: 0.09355675352 | BD189: 32247.94586 | BE189: 0.7945226302 | DS189: 181 | DT189: 17844.67256 | DU189: 0.09355675352 | DV189: 32247.94586 | DW189: 0.7945226302 | DX189: 181 | DY189: -15037.96995 | DZ189: -8412.26695 | EA189: tx B | EB189: 6625.703 | EG189: 72000 | EH189: 0.1887 | EI189: 0.8113 | EJ189: 19408.5171 | EK189: 29712.70516 | EL189: 0.8113
BA190: 182 | BB190: 16507.24925 | BC190: 1.080135612 | BD190: 31594.17795 | BE190: 1.281535535 | DS190: 182 | DT190: 16507.24925 | DU190: 1.080135612 | DV190: 31594.17795 | DW190: 1.281535535 | DX190: 182 | DY190: 15896.81912 | DZ190: 6851.888092 | EA190: tx A | EB190: 0 | EG190: 72400 | EH190: 0.1867 | EI190: 0.8133 | EJ190: 19609.4946 | EK190: 30047.89848 | EL190: 0.8133
BA191: 183 | BB191: 18347.51937 | BC191: -0.9265907743 | BD191: 30611.53185 | BE191: -0.3045339017 | DS191: 183 | DT191: 18347.51937 | DU191: -0.9265907743 | DV191: 30611.53185 | DW191: -0.3045339017 | DX191: 183 | DY191: -46145.2426 | DZ191: -39747.54891 | EA191: tx B | EB191: 6397.693689 | EG191: 72800 | EH191: 0.1838 | EI191: 0.8162 | EJ191: 19810.47211 | EK191: 30383.0918 | EL191: 0.8162
BA192: 184 | BB192: 17087.19285 | BC192: 0.5849510698 | BD192: 31880.92035 | BE192: 0.966273788 | DS192: 184 | DT192: 17087.19285 | DU192: 0.5849510698 | DV192: 31880.92035 | DW192: 0.966273788 | DX192: 184 | DY192: 461.3392431 | DZ192: -2892.706712 | EA192: tx A | EB192: 0 | EG192: 73200 | EH192: 0.1815 | EI192: 0.8185 | EJ192: 20011.44961 | EK192: 30718.28511 | EL192: 0.8185
BA193: 185 | BB193: 17071.75256 | BC193: 0.5183027567 | BD193: 31483.81382 | BE193: 1.069141351 | DS193: 185 | DT193: 17071.75256 | DU193: 0.5183027567 | DV193: 31483.81382 | DW193: 1.069141351 | DX193: 185 | DY193: -1522.669862 | DZ193: 590.4267075 | EA193: tx B | EB193: 2113.09657 | EG193: 73600 | EH193: 0.1802 | EI193: 0.8198 | EJ193: 20212.42712 | EK193: 31053.47843 | EL193: 0.8198
BA194: 186 | BB194: 17196.13148 | BC194: 0.6101989419 | BD194: 30358.06581 | BE194: 0.9909364515 | DS194: 186 | DT194: 17196.13148 | DU194: 0.6101989419 | DV194: 30358.06581 | DW194: 0.9909364515 | DX194: 186 | DY194: 1109.836777 | DZ194: -629.9722606 | EA194: tx A | EB194: 0 | EG194: 74000 | EH194: 0.1783 | EI194: 0.8217 | EJ194: 20413.40462 | EK194: 31388.67174 | EL194: 0.8217
BA195: 187 | BB195: 17880.73203 | BC195: 0.9355013047 | BD195: 30653.76925 | BE195: 1.152919453 | DS195: 187 | DT195: 17880.73203 | DU195: 0.9355013047 | DV195: 30653.76925 | DW195: 1.152919453 | DX195: 187 | DY195: 10184.30712 | DZ195: 3933.814349 | EA195: tx A | EB195: 0 | EG195: 74400 | EH195: 0.1764 | EI195: 0.8236 | EJ195: 20614.38213 | EK195: 31723.86506 | EL195: 0.8236
BA196: 188 | BB196: 18274.079 | BC196: 0.6748543852 | BD196: 29990.09275 | BE196: 0.9643959445 | DS196: 188 | DT196: 18274.079 | DU196: 0.6748543852 | DV196: 29990.09275 | DW196: 0.9643959445 | DX196: 188 | DY196: 1971.552555 | DZ196: -1058.214415 | EA196: tx A | EB196: 0 | EG196: 74800 | EH196: 0.1742 | EI196: 0.8258 | EJ196: 20815.35963 | EK196: 32059.05838 | EL196: 0.8258
BA197: 189 | BB197: 15792.10601 | BC197: 0.7755223071 | BD197: 29241.45703 | BE197: 1.1196653 | DS197: 189 | DT197: 15792.10601 | DU197: 0.7755223071 | DV197: 29241.45703 | DW197: 1.1196653 | DX197: 189 | DY197: 7473.563207 | DZ197: 4348.501981 | EA197: tx A | EB197: 0 | EG197: 75200 | EH197: 0.1722 | EI197: 0.8278 | EJ197: 21016.33714 | EK197: 32394.25169 | EL197: 0.8278
BA198: 190 | BB198: 16578.72075 | BC198: 0.2778525185 | BD198: 29626.50675 | BE198: 0.3882447283 | DS198: 190 | DT198: 16578.72075 | DU198: 0.2778525185 | DV198: 29626.50675 | DW198: 0.3882447283 | DX198: 190 | DY198: -8243.145196 | DZ198: -17979.1649 | EA198: tx A | EB198: 0 | EG198: 75600 | EH198: 0.1714 | EI198: 0.8286 | EJ198: 21217.31464 | EK198: 32729.44501 | EL198: 0.8286
BA199: 191 | BB199: 15829.10789 | BC199: 1.011912444 | BD199: 29890.71599 | BE199: 1.008274313 | DS199: 191 | DT199: 15829.10789 | DU199: 1.011912444 | DV199: 29890.71599 | DW199: 1.008274313 | DX199: 191 | DY199: 14528.26542 | DZ199: 357.5133912 | EA199: tx A | EB199: 0 | EG199: 76000 | EH199: 0.1701 | EI199: 0.8299 | EJ199: 21418.29215 | EK199: 33064.63833 | EL199: 0.8299
BA200: 192 | BB200: 17569.65515 | BC200: 0.4687314239 | BD200: 31755.93254 | BE200: 1.060482407 | DS200: 192 | DT200: 17569.65515 | DU200: 0.4687314239 | DV200: 31755.93254 | DW200: 1.060482407 | DX200: 192 | DY200: -3507.71243 | DZ200: 58.53965874 | EA200: tx B | EB200: 3566.252089 | EG200: 76400 | EH200: 0.1683 | EI200: 0.8317 | EJ200: 21619.26966 | EK200: 33399.83164 | EL200: 0.8317
... 362 more rows

Sheet Parameters
A1: Model Control | E1: opt_modeltype
A2: opt_modeltype | B2: Model Type | C2: Deterministic | E2: Deterministic
E3: Stochastic
A6: Transition Parameters
A7: Parameter | B7: Description | C7: Refers to | D7: Value Used | E7: Deterministic | F7: Stochastic | G7: Random | H7: Dist | I7: Param1 | K7: Param2 | P7: Mean | Q7: SD
A8: p_active | B8: Probability of active disease from silent disease | C8: Treatment A | D8: =IF(opt_modeltype=$E$2,E8,F8) -> 0.09422222222 | E8: 0.09422222222 | F8: =_xlfn.BETA.INV(G8,J8,L8) -> 0.08028650911 | G8: =RAND() -> 0.04952480991 | H8: beta | I8: α | J8: 106 | K8: b | L8: 1019 | P8: =J8/(J8+L8) -> 0.09422222222 | Q8: =(J8*L8/((J8+L8)^2*(J8+L8+1)))^0.5 -> 0.008705992866
C9: Treatment B | D9: 0.09267431598 | E9: 0.09267431598 | F9: 0.08632978824 | G9: 0.2345091681 | H9: beta | I9: α | J9: 105 | K9: b | L9: 1028 | P9: 0.09267431598 | Q9: 0.008611023406
A10: p_success | B10: Probability of silent disease from active disease | C10: Treatment A | D10: 0.1944764097 | E10: 0.1944764097 | F10: 0.1851233161 | G10: 0.245834795 | H10: beta | I10: α | J10: 169 | K10: b | L10: 700 | P10: 0.1944764097 | Q10: 0.01341877805
C11: Treatment B | D11: 0.2119047619 | E11: 0.2119047619 | F11: 0.2461946324 | G11: 0.9908921365 | H11: beta | I11: α | J11: 178 | K11: b | L11: 662 | P11: 0.2119047619 | Q11: 0.01409164559
A12: p_compl_sil | B12: Probability of complications from silent disease | C12: Treatment A | D12: 0.01155555556 | E12: 0.01155555556 | F12: 0.01437569731 | G12: 0.8190498041 | H12: beta | I12: α | J12: 13 | K12: b | L12: 1112 | P12: 0.01155555556 | Q12: 0.003184948044
C13: Treatment B | D13: 0.01412180053 | E13: 0.01412180053 | F13: 0.01190472088 | G13: 0.2790916082 | H13: beta | I13: α | J13: 16 | K13: b | L13: 1117 | P13: 0.01412180053 | Q13: 0.003503887395
A14: p_compl_act | B14: Probability of complications from active disease | C14: Treatment A | D14: 0.1438434983 | E14: 0.1438434983 | F14: 0.1519585331 | G14: 0.7561766826 | H14: beta | I14: α | J14: 125 | K14: b | L14: 744 | P14: 0.1438434983 | Q14: 0.01189767418
C15: Treatment B | D15: 0.09761904762 | E15: 0.09761904762 | F15: 0.1036436485 | G15: 0.7286683003 | H15: beta | I15: α | J15: 82 | K15: b | L15: 758 | P15: 0.09761904762 | Q15: 0.01023444379
A16: p_dead_sil | B16: Probability of death from chronic, silent disease | C16: Treatment A | D16: 0.001777777778 | E16: 0.001777777778 | F16: 0.003473648033 | G16: 0.9015569847 | H16: beta | I16: α | J16: 2 | K16: b | L16: 1123 | P16: 0.001777777778 | Q16: 0.001255402989
C17: Treatment B | D17: 0.001765225066 | E17: 0.001765225066 | F17: 0.001367870326 | G17: 0.4583743049 | H17: beta | I17: α | J17: 2 | K17: b | L17: 1131 | P17: 0.001765225066 | Q17: 0.00124655046
A18: p_dead_act | B18: Probability of death from chronic, active disease | C18: Treatment A | D18: 0.001150747986 | E18: 0.001150747986 | F18: 0.001037883767 | G18: 0.5939792205 | H18: beta | I18: α | J18: 1 | K18: b | L18: 868 | P18: 0.001150747986 | Q18: 0.001149424526
C19: Treatment B | D19: 0.00119047619 | E19: 0.00119047619 | F19: 0.001195896738 | G19: 0.6335736737 | H19: beta | I19: α | J19: 1 | K19: b | L19: 839 | P19: 0.00119047619 | Q19: 0.0011890598
A20: p_dead_cmp | B20: Probability of death from complications state | C20: Common | D20: 0.003494060098 | E20: 0.003494060098 | F20: 0.004624190893 | G20: 0.7892951591 | H20: beta | I20: α | J20: 5 | K20: b | L20: 1426 | P20: 0.003494060098 | Q20: =(J20*L20/((J20+L20)^2*(J20+L20+1)))^0.5 -> 0.001559314158
A22: Cost Parameters | N22: Data informing | P22: Check
A23: Parameter | B23: Description | C23: Refers to | D23: Value Used | E23: Deterministic | F23: Stochastic | G23: Random | H23: Dist | I23: Param1 | K23: Param2 | N23: Mean | O23: SD | P23: Mean | Q23: SD | S23: Mean | T23: Variance | U23: Param1 | V23: Param2
A24: Chronic, silent disease | B24: Health state specific costs | C24: Common | D24: =IF(opt_modeltype=$E$2,E24,F24) -> 23.51960197 | E24: 23.51960197 | F24: =_xlfn.LOGNORM.INV(G24,J24,L24) -> 20.51320837 | G24: =RAND() -> 0.01393010921 | H24: lognormal | I24: μ | J24: =LN(N24)-L24^2/2 -> 3.329821832 | K24: σ | L24: =SQRT(LN(1+(O24/N24)^2)) -> 0.1403901221 | N24: 28.21 | O24: 3.98 | P24: =EXP(J24+L24^2/2) -> 28.21 | Q24: =SQRT((EXP(L24^2)-1)*P24^2) -> 3.98
A25: Chronic, active disease | B25: Health state specific costs | C25: Common | D25: =IF(opt_modeltype=$E$2,E25,F25) -> 84.4295517 | E25: 84.4295517 | F25: =_xlfn.LOGNORM.INV(G25,J25,L25) -> 90.25192507 | G25: 0.6546741353 | H25: lognormal | I25: μ | J25: =LN(N25)-L25^2/2 -> 4.399884248 | K25: σ | L25: =SQRT(LN(1+(O25/N25)^2)) -> 0.2581111139 | N25: 84.2 | O25: 22.1 | P25: =EXP(J25+L25^2/2) -> 84.2 | Q25: =SQRT((EXP(L25^2)-1)*P25^2) -> 22.1
A26: Complications | B26: Health state specific costs | C26: Common | D26: =IF(opt_modeltype=$E$2,E26,F26) -> 396.9966362 | E26: 396.9966362 | F26: =_xlfn.GAMMA.INV(G26,J26,L26) -> 425.8125958 | G26: =RAND() -> 0.3556858305 | H26: gamma | I26: α | J26: =(N26/O26)^2 -> 577.199958 | K26: b | L26: =O26^2/N26 -> 0.7496362292 | N26: 432.69 | O26: 18.01 | P26: =J26*L26 -> 432.69 | Q26: =SQRT(J26*L26^2) -> 18.01
A27: c_TxA | B27: Cost of Treament A | C27: Treatment A | D27: =IF(opt_modeltype=$E$2,E27,F27) -> 38 | E27: 38 | F27: =E27 -> 38 | H27: fixed
A28: c_TxB | B28: Cost of Treament B | C28: Treatment B | D28: =IF(opt_modeltype=$E$2,E28,F28) -> 903 | E28: 903 | F28: =E28 -> 903 | H28: fixed
A30: Utility Parameters
A31: Parameter | B31: Description | C31: Refers to | D31: Value Used | E31: Deterministic | F31: Stochastic | G31: Random | H31: Dist | I31: Param1 | K31: Param2 | M31: a + b | N31: Mean | O31: SD | P31: Mean | Q31: SD
A32: Chronic, silent disease | B32: Health state specific Utility | C32: Common | D32: =IF(opt_modeltype=$E$2,E32,F32) -> 0.819 | E32: 0.819 | F32: =_xlfn.BETA.INV(G32,J32,L32) -> 0.7871453244 | G32: =RAND() -> 0.06924354643 | H32: beta | I32: α | J32: =N32*M32 -> 274.482 | K32: b | L32: =M32-J32 -> 60.66085714 | M32: =N32*(1-N32)/O32^2-1 -> 335.1428571 | N32: 0.819 | O32: 0.021 | P32: =J32/(J32+L32) -> 0.819 | Q32: =J32*L32/((J32+L32)^2*(J32+L32+1)) -> 0.000441
A33: Chronic, active disease | B33: Health state specific Utility | C33: Common | D33: =IF(opt_modeltype=$E$2,E33,F33) -> 0.653 | E33: 0.653 | F33: =_xlfn.BETA.INV(G33,J33,L33) -> 0.7554641722 | G33: =RAND() -> 0.6910556829 | H33: beta | I33: α | J33: =N33*M33 -> 4.527628234 | K33: b | L33: =M33-J33 -> 2.405952523 | M33: =N33*(1-N33)/O33^2-1 -> 6.933580757 | N33: 0.653 | O33: 0.169 | P33: =J33/(J33+L33) -> 0.653 | Q33: =J33*L33/((J33+L33)^2*(J33+L33+1)) -> 0.028561
A34: Complications | B34: Health state specific Utility | C34: Common | D34: =IF(opt_modeltype=$E$2,E34,F34) -> -0.137 | E34: -0.137 | F34: =1-F35 -> 0.06641664437
B35: DISUTILITY FOR COMPLICATIONS STATE | F35: =_xlfn.GAMMA.INV(G35,J35,L35) -> 0.9335833556 | G35: =RAND() -> 0.1246812082 | H35: gamma | I35: α | J35: =(N35/O35)^2 -> 39.90027778 | K35: b | L35: =O35^2/N35 -> 0.02849604222 | M35: =N35*(1-N35)/O35^2-1 -> -5.807685185 | N35: 1.137 | O35: 0.18 | P35: =J35*L35 -> 1.137 | Q35: =SQRT(J35*L35^2) -> 0.18

Sheet Dummy for calculation purposes
E8: Sumatriptan | H8: SILENT | I8: ACTIVE | J8: COMPL | K8: DEAD | M8: TOTAL
G9: SILENT | H9: =M9-I9-J9-K9 -> 1005 | I9: 106 | J9: 13 | K9: 1 | M9: 1125
G10: ACTIVE | H10: 169 | I10: =M10-H10-J10-K10 -> 574 | J10: 125 | K10: 1 | M10: 869
G11: COMPL | H11: 0 | I11: 0 | J11: =M11-H11-I11-K11 -> 1426 | K11: 5 | M11: 1431
G12: DEAD | H12: 0 | I12: 0 | J12: 0 | K12: 1 | M12: 1
H16: SILENT | I16: ACTIVE | J16: COMPL | K16: DEAD
G17: SILENT | H17: =H9/$M9 -> 0.8933333333 | I17: 0.09422222222 | J17: 0.01155555556 | K17: 0.0008888888889
G18: ACTIVE | H18: 0.1944764097 | I18: 0.6605293441 | J18: 0.1438434983 | K18: 0.001150747986
G19: COMPL | H19: 0 | I19: 0 | J19: 0.9965059399 | K19: 0.003494060098
G20: DEAD | H20: 0 | I20: 0 | J20: 0 | K20: 1
E24: Caffeine/Ergotamine | H24: SILENT | I24: ACTIVE | J24: COMPL | K24: DEAD | M24: TOTAL
G25: SILENT | H25: =M25-I25-J25-K25 -> 1011 | I25: 105 | J25: 16 | K25: 1 | M25: 1133
G26: ACTIVE | H26: 178 | I26: =M26-H26-J26-K26 -> 579 | J26: 82 | K26: 1 | M26: 840
G27: COMPL | H27: 0 | I27: 0 | J27: =M27-H27-I27-K27 -> 1422 | K27: 9 | M27: 1431
G28: DEAD | H28: 0 | I28: 0 | J28: 0 | K28: 1 | M28: 1
H32: SILENT | I32: ACTIVE | J32: COMPL | K32: DEAD
G33: SILENT | H33: =H25/$M25 -> 0.892321271 | I33: 0.09267431598 | J33: 0.01412180053 | K33: 0.0008826125331
G34: ACTIVE | H34: 0.2119047619 | I34: 0.6892857143 | J34: 0.09761904762 | K34: 0.00119047619
G35: COMPL | H35: 0 | I35: 0 | J35: 0.9937106918 | K35: 0.006289308176
G36: DEAD | H36: 0 | I36: 0 | J36: 0 | K36: 1
